Workbook

Sheet Welcome
F3: Return on Investment of Falls Prevention Programmes in Older People in the Community
E9: This is a tool that has been designed for healthcare commissioners and providers in England who wish to assess the return on investment for community-based falls prevention programmes for older people. The tool has been commissioned by Public Health England and developed by York Health Economics Consortium. It is hoped that the tool will aid decision-making and increase the uptake of cost-effective programmes aimed at falls prevention in the community. In total four separate programmes are included that have previously been found to be cost-effective. These programmes are: - Otago strength and balance exercise - Falls Management Exercise (FaME) - Tai Chi or Tai Ji Quan - Home Assessment and Modification. Using the tool it is possible to assess the return on investment for adopting each programme within a specific geographical area (e.g. an individual local authority or CCG) and the tool is pre-populated with relevant English data to allow this. However, it is also possible to insert alternative data to analyse new scenarios (e.g. a reduction in costs for a specific programme). The tool contains an in-built user guide that aims to give a step-by-step explanation of how to undertake an analysis, including updating the data. It is recommended that the 'Information' section is read before undertaking any form of analysis and this section can be accessed using the button on the left.
E10: For more information on the tool, or to provide feedback on its usability, please contact us at: | P10: healtheconomics@phe.gov.uk

Sheet 1a) Model guide
G10: Tool sections:
G11: The tool is separated into three main sections: Information (currently selected), Inputs and Results. You can navigate between these using the buttons on the left-hand side. Within each section there are also a number of sub-sections and it is possible to navigate amongst them using the buttons at the top of each page (as seen above). It is also possible to navigate across each of the tool's sections and sub-sections using the tabs at the bottom of the page. These tabs are colour coded based on the section that is chosen (i.e. Information, Inputs and Results).
G13: Navigating around the tool:
G14: When entering the 'Inputs' section each sub-section should be viewed in-turn (moving from left to right) in order to ensure the inputs for the tool are setup in the appropriate way to generate relevant results. More information on how to setup the tool is given in the remaining pages in this section and also using the in-built user guide. Each sub-section within 'Inputs' has it's own user guide which can be selected to explain the information that is presented in that sub-section and how the default data can be updated to model new scenarios (i.e. ones specific to your local area).
G16: Colour-coding system:
G17: There are three different types of cells in the tool (input, calculation and results) and there is a colour-coding system in place to help distinguish between them. Input cells contain data for the tool input parameters (e.g. unit costs, efficacy data) and are shown by a yellow background. These calls can be updated if you want to used new values to estimate the tool's results. Calculation cells contain equations that are used to estimate specific inputs that drive the tool's results. For example, to estimate the cost of staff time for a specific intervention the total number of hours required for one staff type (e.g. physiotherapist) will be multiplied by the hourly rate for that staff member. These cells are shown by a light blue background and the values in these cells shouldn't be altered as this will effect the overall results. Result cells contain the main outputs from the tool (e.g. total costs) and these can all be found within the 'Results' section. These cells are shown by a light orange background and, as with the calculation cells, the values presented in these cells should not be altered.
G19: Other features:
G20: The tool also contains a number of other features that allow for simple operation, including comment boxes that contain information about specific input parameters (an example can be found above this paragraph, viewable by hovering over the red triangle) and dropdown boxes that can be used to select from a number of different options from a pre-defined list (e.g. selected intervention, geographical area).

Sheet 1b) Model steps
G10: A number of steps must be followed in order to generate relevant results regarding the return on investment for commissioning each of the four interventions included in the tool. If you do not wish to update the data sources used for the tool input parameters then it will be possible to generate results using the default data once a small number of variables have been chosen (e.g. geographical location, intervention choice). However, if you wish to update the values using data specific to your local area this will require further steps to generate appropriate results. These steps are summarised below and more information on updating input parameters is given in the user guide that is in-built into tool.
G12: INPUTS
G14: Intervention (2a)
G15: The return on investment for each included intervention must be assessed individually. Therefore, only one intervention can be chosen for the analysis and this choice should be made using the dropdown menu on the 'Interventions' (2a) page. Within the tool each intervention is compared to current usual care, which is assumed to be no specific falls prevention programmes (i.e. the participants are not currently part of a falls prevention service).
G18: Population (2b)
G19: Each analysis will be undertaken for a specific population. Therefore, the size of this population must be selected. Once you have navigated to the 'Population' (2b) page a specific geographical area can be selected from a pre-defined list using the dropdown menu. It will also be possible to input a new value into the 'user defined' cell if you wish to test a population size that isn't included in the list.
G22: Intervention costs (2c)
G23: It is important to accurately capture the cost of each of the interventions included in the tool. These costs have already been captured based on information available in the literature and a survey of relevant experts in the field. The effectiveness of each intervention is closely related to the setup of the intervention (e.g. the number of staff required to administer the intervention). Therefore, it is recommended that the cost of each intervention is left unchanged. However, if you do wish to examine the impact of alternative costs this can be achieved by moving to the 'Intervention costs' (2c) page and following the information presented in the user guide.
G26: Other resources (2d)
G27: A number of other resources are also included in the tool (i.e. not just the cost of each intervention). In particular, the impact of each intervention on older people is captured by examining the rate of falls. Therefore, the cost of these falls are included in the tool and can be viewed on the 'Other resources' (2d) page. You should navigate to this page, and follow the information presented in the user guide, if you wish to update the values given.
G30: Effectiveness (2e)
G31: The 'Effectiveness' (2e) page includes the baseline rate of falls for older people living in the community and the reduction in the rate of falls. This reduction is used to estimate the number of falls prevented by each intervention given the size of the population selected previously. As with the intervention costs it is not recommended that the values presented in this page are updated. However, if you wish to examine the impact of alternative values (i.e. an increase or reduction in effectiveness for one intervention) then this can be achieve on the 'Effectiveness' page by following the instructions in the user guide.
G34: Utility (2f)
G35: The final set of input parameters are included on the 'Utility' (2f) page. Utility is a measurement of persons quality of life and can be used to measure the level of benefit that a specific intervention is bringing to the population. More information about utility as a metric is given in the user guide on this page along with an explanation of how utility is applied in this tool and what impact this has on the overall results.
G38: RESULTS
G40: Results summary (3a)
G41: The tool will automatically produce results based on the parameters that are selected in the Inputs section. This means you can switch between the Inputs and Results at any point to examine the impact of changing the value of the input parameters. The main metric for the tool with be the return on investment for each intervention, should it be implemented in the selected geographical area. The return on investment is calculated using the equation outlined below and will be shown on the 'Results summary' (3a) page.
G45: Detailed results (3b)
G46: The return on investment is not the only metric reported by the tool. The 'Detailed results' (3b) page contains a number of other metrics that should provide further information on the impact of each intervention. The includes a breakdown of the estimated costs (e.g. intervention costs, hospital and social care costs following a fall) and a measurement of the number of falls avoided.
G49: Results charts (3b)
G50: The 'Results charts' (3c) page contains graphical depictions of the main results for the tool and, as with the other results pages, the charts will automatically update based on the parameters selected in the Inputs section.
G53: Sensitivity analysis (3d)
G54: It is necessary to examine the impact of changes in the values adopted for the tool input parameters. This is because there is often uncertainty regarding the value that should be applied and, therefore, it is important to highlight the parameters that have the largest impact on the results. Sensitivity analysis allows an examination of the impact of these changes and is achieved by setting a range, rather than a point estimate, for each input parameter and the tool results update accordingly. The 'Sensitivity analysis' (3d) page already contains pre-defined ranges based on the default values applied in the tool and the graphs included in this page show the impact of changes within these pre-defined ranges on the overall results. A dropdown menu is included that can be used to navigate between different input parameters.

Sheet 1c) Example

Sheet 1d) Disclaimer
G10: Disclaimer:
G11: Public Health England has provided this tool to aid decision-making and cannot be held liable for any investment or other decisions that are made using the information presented. The best available evidence has been used in this tool and assumptions are clearly stated. Local authorities using this tool are advised to seek the support of their local falls prevention team.
G13: Acknowledgments:
G14: We would like to thank all the individuals who contributed towards the development of this tool. This included those helping to inform the tool design and values for the tool input parameters and also providing key insights during the quality assurance process. A range of individuals were involved, including: health economists at Public Health England, commissioners and representatives from local authorities, members of falls prevention teams from across England and advisors from the National Osteoporosis Society.
G16: Citation:
G17: If you wish to cite this tool please use the following:
G18: Public Health England. A return on investment tool for falls prevention programmes in older people based in the community. 2017.

Sheet 2a) Interventions
G13: Select intervention:
G15: Intervention description:
G16: =CHOOSE(IntChoice,G96,G97,G98,G99) -> The Otago programme is a home based exercise programme in which participants are encouraged to perform exercises three times a week at home and also walk indoors and outdoors at a moderate pace. Otago is recommended for at least one year and participants receive support from trained staff through home visits and follow up telephone calls.
G18: Target population for each intervention:
G20: Characteristic | H20: Value
G21: Mean or median age | H21: =VLOOKUP($G$79,$F$82:$K$85,3) -> 82
G22: Age range | H22: =VLOOKUP($G$79,$F$82:$N$85,9) -> 65 to 97
G23: Gender | H23: =VLOOKUP($G$79,$F$82:$K$85,4) -> 75% Female
G24: Previous falls history | H24: =VLOOKUP($G$79,$F$82:$K$85,5) -> 43% had fallen in previous 12 months
G25: Mobility | H25: =VLOOKUP($G$79,$F$82:$K$85,6) -> Mobile in home
G26: Follow-up period | H26: =VLOOKUP($G$79,$F$82:$L$85,7) -> 12 months
G27: =IF(IntChoice=5,"IQR = interquartile range","") -> 
G29: Discount rate - Costs | H29: 0.035
G30: Discount rate - Benefits | H30: 0.015
G79: 1 | H79: =VLOOKUP(IntChoice,F90:G93,2) -> Otago
H81: Age | I81: Gender | J81: Falls | K81: Mobility | L81: Follow-up period | N81: Age range
F82: 1 | G82: Otago strength and balance exercise | H82: 82 | I82: 75% Female | J82: 43% had fallen in previous 12 months | K82: Mobile in home | L82: 12 months | M82: 52 | N82: 65 to 97
F83: 2 | G83: Falls Management exercise (FaME) | H83: 73 | I83: 62% Female | J83: 22% had fallen in previous 12 months | K83: Physically able to attend group exercise | L83: 18 months | M83: 78 | N83: 65 to 94
F84: 3 | G84: Tai Chi or Tai Ji Quan | H84: 78 | I84: 70% Female | J84: 62% had fallen in previous year | K84: 37% required use of a walking aid | L84: 12 months | M84: 52 | N84: 69 - 90
F85: 4 | G85: Home Assessment and Modification. | H85: 76.4 years | I85: 56% female | J85: All had at least one fall in the previous 12 months | K85: Mobile in home | L85: 12 months | M85: 52 | N85: 62 to 91
H89: Baseline rate - source | I89: IRR - source
F90: 1 | G90: Otago | H90: Roberson et al. 2002 | I90: Roberson et al. 2002
F91: 2 | G91: FaME | H91: Iliffe et al. 2014 | I91: Iliffe et al. 2014
F92: 3 | G92: Tai Chi | H92: Gillespie et al. 2012 (estimated) | I92: Gillespie et al. 2012
F93: 4 | G93: HAM | H93: Gillespie et al. 2012 (estimated) | I93: Gillespie et al. 2012
F96: 1 | G96: The Otago programme is a home based exercise programme in which participants are encouraged to perform exercises three times a week at home and also walk indoors and outdoors at a moderate pace. Otago is recommended for at least one year and participants receive support from trained staff through home visits and follow up telephone calls.
F97: 2 | G97: The Falls Management Exercise (FaME) programme is a community based group programme delivered by a postural stability instructor (PSI). The programme consists of weekly classes lasting between 45 and 75 minutes with additional home exercises.
F98: 3 | G98: Tai chi exercises combine deep breathing and relaxation with flowing movement. It can be performed in a community based group on a weekly basis, with additional exercises at home. Tai Chi should be considered as a type of physical activity rather than a clinical falls prevention intervention.
F99: 4 | G99: Home assessment and modification (HAM) is a service in which relevant experts risk assess a person’s usual residence to identify environmental hazards and carries out actions to reduce these. Typical environmental hazards are loose mats, poor lighting and no handrails.

Sheet 2b) Population
G13: Local authority, CCG or STP:
G15: Select age bracket:
G17: Select local authority:
G19: Select CCG:
G21: Select STP:
G23: Total size of the population: | AG23: LIVE
G24: Estimated | H24: User defined | AG24: =IF(H25="",G25,H25) -> 14702
G25: =IF(G65=1,VLOOKUP(G83,F86:I454,IF(J65=1,3,4)),IF(G65=2,VLOOKUP(M83,L86:O301,IF(J65=1,3,4)),IF(G65=3,VLOOKUP(R83,Q87:T129,IF(J65=1,3,4))))) -> 14702
G28: Proportion of population deemed at risk of future falls: | K28: =IF((AND(IntChoice=4,J65=1)),H78,IF((AND(IntChoice=4,J65=2)),I78,IF(J65=1,H75,I75))) -> 0.34
G30: Willing to take part in a falls prevention programme: | K30: 0.2
G32: Proportion of population selected for final analysis: | K32: 1
G35: Total population included in the analysis: | J35: =K28*AG24*K30*K32 -> 999.736
G64: 3
G65: 1 | J65: 1
G66: Local authority | J66: 65+ | L66: 0.34
G67: CCG | J67: 80+ | L67: 0.45
G68: STP
G71: From Craig 2013 paper "The high cost to health and social care of managing falls in older adults living in the community in Scotland"
H72: 65+ | I72: 80+
G73: Population | H73: 868512 | I73: 224272 | K73: Falls emergency admission rates per 1000
G74: Number of fallers | H74: 294194 | I74: 100923 | K74: 65+ | L74: 80+ | M74: Difference
G75: Proportion who fall | H75: 0.34 | I75: 0.45 | K75: 2169 | L75: 5526 | M75: =(L75-K75)/K75 -> 1.547717842
G76: For HAM: | K76: Public Health Outcomes Framework (2015-16)
G77: Number of hospital admissions | H77: 16549 | I77: ? | K77: https://fingertips.phe.org.uk/search/falls#pat/6/ati/102/par/null
G78: Proportion who are admitted to hospital | H78: 0.01905442872 | I78: =H78*(1+M75) -> 0.04854530804
G83: 1 | H83: =VLOOKUP(G83,F86:G454,2) -> Adur | M83: 4 | R83: 1
G84: Local authority | M84: CCG
H85: 65+ | I85: 80+ | N85: 65+ | O85: 80+
F86: 1 | G86: Adur | H86: 14702 | I86: 4262 | L86: 1 | M86: ENGLAND | N86: 9882841 | O86: 2673451 | R86: STP | S86: 65+ | T86: 80+
F87: 2 | G87: Allerdale | H87: 22488 | I87: 5736 | L87: 2 | M87: LONDON | N87: 1303321 | O87: 282197 | Q87: 1 | R87: Bath, Swindon and Wiltshire | S87: =SUM(N97,N290,N265) -> 171667 | T87: =SUM(O97,O290,O265) -> 47065
F88: 3 | G88: Amber Valley | H88: 26401 | I88: 6533 | L88: 3 | M88: MIDLANDS AND EAST OF ENGLAND | N88: 3992303 | O88: 845451 | Q88: 2 | R88: Birmingham and Solihull | S88: =SUM(N100,N101,N234) -> 174694 | T88: =SUM(O100,O101,O234) -> 51020
F89: 4 | G89: Arun | H89: 43996 | I89: 13083 | L89: 4 | M89: NHS Airedale, Wharfedale and Craven | N89: 34811 | O89: 9981 | Q89: 3 | R89: Black Country and West Birmingham | S89: =SUM(N294,N275,N132,N229) -> 220902 | T89: =SUM(O294,O275,O132,O229) -> 61443
F90: 5 | G90: Ashfield | H90: 22979 | I90: 5351 | L90: 5 | M90: NHS Ashford | N90: 24063 | O90: 6120 | Q90: 4 | R90: Bristol, North Somerset, South Gloucestershire | S90: =SUM(N110,N210,N240) -> 160686 | T90: =SUM(O110,O210,O240) -> 45251
F91: 6 | G91: Ashford | H91: 23585 | I91: 6059 | L91: 6 | M91: NHS Aylesbury Vale | N91: 36408 | O91: 9568 | Q91: 5 | R91: Buckinghamshire, Oxfordshire and Berkshire | S91: =SUM(N91,N120,N196,N199,N221,N244,N293) -> 293048 | T91: =SUM(O91,O120,O196,O199,O221,O244,O293) -> 80892
F92: 7 | G92: Aylesbury Vale | H92: 30915 | I92: 7892 | L92: 7 | M92: NHS Barking and Dagenham | N92: 19793 | O92: 5922 | Q92: 6 | R92: Cambridgeshire and Peterborough | S92: =SUM(N114) -> 154669 | T92: =SUM(O114) -> 41747
F93: 8 | G93: Babergh | H93: 22363 | I93: 6023 | L93: 8 | M93: NHS Barnet | N93: 54215 | O93: 16162 | Q93: 7 | R93: Cheshire and Merseyside | S93: =SUM(N142,N153,N176,N185,N254,N245,N256,N236,N273,N278,N280,N292) -> 476806 | T93: =SUM(O142,O153,O176,O185,O254,O245,O256,O236,O273,O278,O280,O292) -> 127322
F94: 9 | G94: Barking and Dagenham | H94: 19606 | I94: 5971 | L94: 9 | M94: NHS Barnsley | N94: 45676 | O94: 11457 | Q94: 8 | R94: Coast, Humber and Vale | S94: =SUM(N138,N170,N205,N208,N230,N272) -> 283098 | T94: =SUM(O138,O170,O205,O208,O230,O272) -> 74299
F95: 10 | G95: Barnet | H95: 53019 | I95: 15722 | L95: 10 | M95: NHS Basildon and Brentwood | N95: 47070 | O95: 13498 | Q95: 9 | R95: Cornwall and the Isles of Scilly | S95: =SUM(N174) -> 135215 | T95: =SUM(O174) -> 34595
F96: 11 | G96: Barnsley | H96: 44811 | I96: 11156 | L96: 11 | M96: NHS Bassetlaw | N96: 24494 | O96: 6055 | Q96: 10 | R96: Coventry and Warwickshire | S96: =SUM(N125,N248,N279) -> 164032 | T96: =SUM(O125,O248,O279) -> 44194
F97: 12 | G97: Barrow-in-Furness | H97: 14131 | I97: 3385 | L97: 12 | M97: NHS Bath and North East Somerset | N97: 35382 | O97: 10191 | Q97: 11 | R97: Derbyshire | S97: =SUM(N144,N156,N201,N253) -> 201283 | T97: =SUM(O144,O156,O201,O253) -> 52537
F98: 13 | G98: Basildon | H98: 31111 | I98: 8425 | L98: 13 | M98: NHS Bedfordshire | N98: 77612 | O98: 20329 | Q98: 12 | R98: Devon | S98: =SUM(N214,N237) -> 275124 | T98: =SUM(O214,O237) -> 76109
F99: 14 | G99: Basingstoke and Deane | H99: 28653 | I99: 7033 | L99: 14 | M99: NHS Bexley | N99: 40368 | O99: 12068 | Q99: 13 | R99: Dorset | S99: =N131 -> 188443 | T99: =O131 -> 55685
F100: 15 | G100: Bassetlaw | H100: 23989 | I100: 5915 | L100: 15 | M100: NHS Birmingham CrossCity | N100: 103525 | O100: 30529 | Q100: 14 | R100: Durham, Darlington and Tees, Hambleton, Richmondshire and Whitby | S100: =SUM(N128,N133,N154,N160,N246) -> 218295 | T100: =SUM(O128,O133,O154,O160,O246) -> 56318
F101: 16 | G101: Bath and North East Somerset | H101: 35004 | I101: 10191 | L101: 16 | M101: NHS Birmingham South and Central | N101: 26703 | O101: 7736 | Q101: 15 | R101: Frimley Health | S101: =SUM(N105,N204,N233,N262,N291) -> 113847 | T101: =SUM(O105,O204,O233,O262,O291) -> 31271
F102: 17 | G102: Bedford | H102: 28643 | I102: 8084 | L102: 17 | M102: NHS Blackburn with Darwen | N102: 21105 | O102: 5128 | Q102: 16 | R102: Gloucestershire | S102: =N147 -> 129623 | T102: =O147 -> 35058
F103: 18 | G103: Bexley | H103: 40088 | I103: 11934 | L103: 18 | M103: NHS Blackpool | N103: 28498 | O103: 7636 | Q103: 17 | R103: Greater Manchester | S103: =SUM(N112,N165,N220,N228,N258,N266,N271,N289,N104,N187) -> 442556 | T103: =SUM(O112,O165,O220,O228,O258,O266,O271,O289,O104,O187) -> 112121
F104: 19 | G104: Birmingham | H104: 144985 | I104: 42254 | L104: 19 | M104: NHS Bolton | N104: 47975 | O104: 11581 | Q104: 18 | R104: Hampshire and the Isle of Wight | S104: =SUM(N145,N172,N204,N206,N222,N239,N251,N282) -> 395292 | T104: =SUM(O145,O172,O204,O206,O222,O239,O251,O282) -> 109929
F105: 20 | G105: Blaby | H105: 19382 | I105: 5049 | L105: 20 | M105: NHS Bracknell and Ascot | N105: 20297 | O105: 5413 | Q105: 19 | R105: Herefordshire and Worcestershire | S105: =SUM(N163,N224,N250,N295) -> 172848 | T105: =SUM(O163,O224,O250,O295) -> 45977
F106: 21 | G106: Blackburn with Darwen | H106: 20861 | I106: 5038 | L106: 21 | M106: NHS Bradford City | N106: 5879 | O106: 1648 | Q106: 20 | R106: Hertfordshire and West Essex | S106: =SUM(N135,N164,N281) -> 248594 | T106: =SUM(O135,O164,O281) -> 73327
F107: 22 | G107: Blackpool | H107: 28447 | I107: 7571 | L107: 22 | M107: NHS Bradford Districts | N107: 49448 | O107: 13238 | Q107: 21 | R107: Kent & Medway | S107: =SUM(N90,N117,N129,N189,N241,N264,N268,N283) -> 349161 | T107: =SUM(O90,O117,O129,O189,O241,O264,O268,O283) -> 92803
F108: 23 | G108: Bolsover | H108: 15211 | I108: 3766 | L108: 23 | M108: NHS Brent | N108: 37759 | O108: 10158 | Q108: 22 | R108: Lancashire and South Cumbria | S108: =SUM(N102,N103,N121,N136,N146,N150,N284,N193) -> 338120 | T108: =SUM(O102,O103,O121,O136,O146,O150,O284,O193) -> 87653
F109: 24 | G109: Bolton | H109: 47439 | I109: 11423 | L109: 24 | M109: NHS Brighton and Hove | N109: 38396 | O109: 11328 | Q109: 23 | R109: Leicester, Leicestershire and Rutland | S109: =SUM(N137,N181,N285) -> 186661 | T109: =SUM(O137,O181,O285) -> 49533
F110: 25 | G110: Boston | H110: 13922 | I110: 3749 | L110: 25 | M110: NHS Bristol | N110: 59571 | O110: 17386 | Q110: 24 | R110: Lincolnshire | S110: =SUM(N183,N184,N242,N249) -> 171049 | T110: =SUM(O183,O184,O242,O249) -> 43533
F111: 26 | G111: Bournemouth | H111: 34867 | I111: 11317 | L111: 26 | M111: NHS Bromley | N111: 57344 | O111: 17123 | Q111: 25 | R111: Mid and South Essex | S111: =SUM(N95,N118,N191,N252,N269) -> 224285 | T111: =SUM(O95,O118,O191,O252,O269) -> 60488
F112: 27 | G112: Bracknell Forest | H112: 16278 | I112: 4220 | L112: 27 | M112: NHS Bury | N112: 33712 | O112: 8296 | Q112: 26 | R112: Milton Keynes, Bedfordshire and Luton | S112: =SUM(N98,N186,N192) -> 139831 | T112: =SUM(O98,O186,O192) -> 36305
F113: 28 | G113: Bradford | H113: 76088 | I113: 20932 | L113: 28 | M113: NHS Calderdale | N113: 37878 | O113: 9435 | Q113: 27 | R113: Norfolk | S113: =SUM(N148,N209,N216,N243,N287) -> 243896 | T113: =SUM(O148,O209,O216,O243,O287) -> 67378
F114: 29 | G114: Braintree | H114: 28740 | I114: 7491 | L114: 29 | M114: NHS Cambridgeshire and Peterborough | N114: 154669 | O114: 41747 | Q114: 28 | R114: North Central London | S114: =SUM(N93,N115,N143,N157,N173) -> 172258 | T114: =SUM(O93,O115,O143,O157,O173) -> 47323
F115: 30 | G115: Breckland | H115: 32450 | I115: 8742 | L115: 30 | M115: NHS Camden | N115: 29063 | O115: 7737 | Q115: 29 | R115: North East London | S115: =SUM(N92,N122,N162,N198,N223,N270,N276) -> 195112 | T115: =SUM(O92,O122,O162,O198,O223,O270,O276) -> 54768
F116: 31 | G116: Brent | H116: 36631 | I116: 9708 | L116: 31 | M116: NHS Cannock Chase | N116: 26085 | O116: 6207 | Q116: 30 | R116: North West London | S116: =SUM(N108,N119,N134,N155,N159,N167,N169,N286) -> 259047 | T116: =SUM(O108,O119,O134,O155,O159,O167,O169,O286) -> 69845
F117: 32 | G117: Brentwood | H117: 15418 | I117: 4774 | L117: 32 | M117: NHS Canterbury and Coastal | N117: 44025 | O117: 12095 | Q117: 31 | R117: Northamptonshire | S117: =SUM(N124,N194) -> 124775 | T117: =SUM(O124,O194) -> 30754
F118: 33 | G118: Brighton and Hove | H118: 38075 | I118: 11342 | L118: 33 | M118: NHS Castle Point and Rochford | N118: 41786 | O118: 10769 | Q118: 32 | R118: Northumberland, Tyne and Wear | S118: =SUM(N197,N202,N212,N215,N247,N260) -> 325961 | T118: =SUM(O197,O202,O212,O215,O247,O260) -> 85309
F119: 34 | G119: Bristol, City of | H119: 59308 | I119: 17467 | L119: 34 | M119: NHS Central London (Westminster) | N119: 22550 | O119: 6185 | Q119: 33 | R119: Nottinghamshire | S119: =SUM(N188,N195,N217,N218,N219,N227) -> 177589 | T119: =SUM(O188,O195,O217,O218,O219,O227) -> 47016
F120: 35 | G120: Broadland | H120: 31642 | I120: 8797 | L120: 35 | M120: NHS Chiltern | N120: 62151 | O120: 17997 | Q120: 34 | R120: Shropshire, Telford and Wrekin | S120: =SUM(N232,N267) -> 103060 | T120: =SUM(O232,O267) -> 26089
F121: 36 | G121: Bromley | H121: 56796 | I121: 16868 | L121: 36 | M121: NHS Chorley and South Ribble | N121: 33288 | O121: 7670 | Q121: 35 | R121: Somerset | S121: =N235 -> 131141 | T121: =O235 -> 36234
F122: 37 | G122: Bromsgrove | H122: 21187 | I122: 6117 | L122: 37 | M122: NHS City and Hackney | N122: 21326 | O122: 5394 | Q122: 36 | R122: South East London | S122: =SUM(N99,N111,N151,N177,N182,N255) -> 205638 | T122: =SUM(O99,O111,O151,O177,O182,O255) -> 58065
F123: 38 | G123: Broxbourne | H123: 17011 | I123: 4758 | L123: 38 | M123: NHS Coastal West Sussex | N123: 129445 | O123: 38556 | Q123: 37 | R123: South West London | S123: =SUM(N127,N175,N190,N225,N263,N277) -> 189069 | T123: =SUM(O127,O175,O190,O225,O263,O277) -> 52196
F124: 39 | G124: Broxtowe | H124: 22709 | I124: 5919 | L124: 39 | M124: NHS Corby | N124: 9582 | O124: 2265 | Q124: 38 | R124: South Yorkshire and Bassetlaw | S124: =SUM(N94,N96,N130,N226,N231) -> 270389 | T124: =SUM(O94,O96,O130,O226,O231) -> 71074
F125: 40 | G125: Buckinghamshire | H125: 96121 | I125: 26466 | L125: 40 | M125: NHS Coventry and Rugby | N125: 69382 | O125: 19283 | Q125: 39 | R125: Staffordshire | S125: =SUM(N116,N139,N211,N238,N257,N259) -> 225665 | T125: =SUM(O116,O139,O211,O238,O257,O259) -> 55944
F126: 41 | G126: Burnley | H126: 15833 | I126: 3946 | L126: 41 | M126: NHS Crawley | N126: 14749 | O126: 4481 | Q126: 40 | R126: Suffolk and North East Essex | S126: =SUM(N203,N171,N288) -> 213019 | T126: =SUM(O203,O171,O288) -> 58166
F127: 42 | G127: Bury | H127: 33413 | I127: 8169 | L127: 42 | M127: NHS Croydon | N127: 50206 | O127: 13936 | Q127: 41 | R127: Surrey Heartlands | S127: =SUM(N152,N213,N261) -> 158499 | T127: =SUM(O152,O213,O261) -> 47788
F128: 43 | G128: Calderdale | H128: 37158 | I128: 9338 | L128: 43 | M128: NHS Darlington | N128: 20857 | O128: 5700 | Q128: 42 | R128: Sussex and East Surrey | S128: =SUM(N109,N123,N126,N140,N141,N161,N166,N168) -> 399660 | T128: =SUM(O109,O123,O126,O140,O141,O161,O166,O168) -> 117843
F129: 44 | G129: Cambridge | H129: 15707 | I129: 5010 | L129: 44 | M129: NHS Dartford, Gravesham and Swanley | N129: 44799 | O129: 12422 | Q129: 43 | R129: West Yorkshire | S129: =SUM(N89,N106,N107,N113,N149,N158,N178,N179,N180,N207,N274) -> 422124 | T129: =SUM(O89,O106,O107,O113,O149,O158,O178,O179,O180,O207,O274) -> 111927
F130: 45 | G130: Cambridgeshire | H130: 116225 | I130: 31242 | L130: 45 | M130: NHS Doncaster | N130: 57042 | O130: 14957 | Q130: 44 | R130: West, North and East Cumbria | S130: =N200 -> 72189 | T130: =O200 -> 18785
F131: 46 | G131: Camden | H131: 28184 | I131: 7451 | L131: 46 | M131: NHS Dorset | N131: 188443 | O131: 55685
F132: 47 | G132: Cannock Chase | H132: 17961 | I132: 4313 | L132: 47 | M132: NHS Dudley | N132: 63994 | O132: 17085
F133: 48 | G133: Canterbury | H133: 32020 | I133: 9067 | L133: 48 | M133: NHS Durham Dales, Easington and Sedgefield | N133: 56961 | O133: 14082
F134: 49 | G134: Carlisle | H134: 22187 | I134: 6007 | L134: 49 | M134: NHS Ealing | N134: 41462 | O134: 11259
F135: 50 | G135: Castle Point | H135: 21962 | I135: 5371 | L135: 50 | M135: NHS East and North Hertfordshire | N135: 95489 | O135: 28080
F136: 51 | G136: Central Bedfordshire | H136: 47114 | I136: 11485 | L136: 51 | M136: NHS East Lancashire | N136: 70736 | O136: 17676
F137: 52 | G137: Charnwood | H137: 31220 | I137: 8354 | L137: 52 | M137: NHS East Leicestershire and Rutland | N137: 70323 | O137: 19220
F138: 53 | G138: Chelmsford | H138: 32434 | I138: 8795 | L138: 53 | M138: NHS East Riding of Yorkshire | N138: 79218 | O138: 20167
F139: 54 | G139: Cheltenham | H139: 21427 | I139: 6499 | L139: 54 | M139: NHS East Staffordshire | N139: 24068 | O139: 6207
F140: 55 | G140: Cherwell | H140: 25188 | I140: 6696 | L140: 55 | M140: NHS East Surrey | N140: 32878 | O140: 9531
F141: 56 | G141: Cheshire East | H141: 82240 | I141: 22179 | L141: 56 | M141: NHS Eastbourne, Hailsham and Seaford | N141: 51081 | O141: 16144
F142: 57 | G142: Cheshire West and Chester | H142: 68906 | I142: 17931 | L142: 57 | M142: NHS Eastern Cheshire | N142: 46557 | O142: 13173
F143: 58 | G143: Chesterfield | H143: 21185 | I143: 5657 | L143: 58 | M143: NHS Enfield | N143: 42556 | O143: 11916
F144: 59 | G144: Chichester | H144: 31069 | I144: 9345 | L144: 59 | M144: NHS Erewash | N144: 18353 | O144: 4902
F145: 60 | G145: Chiltern | H145: 20084 | I145: 5809 | L145: 60 | M145: NHS Fareham and Gosport | N145: 42960 | O145: 11886
F146: 61 | G146: Chorley | H146: 21582 | I146: 4899 | L146: 61 | M146: NHS Fylde & Wyre | N146: 45272 | O146: 12859
F147: 62 | G147: Christchurch | H147: 15408 | I147: 4969 | L147: 62 | M147: NHS Gloucestershire | N147: 129623 | O147: 35058
F148: 63 | G148: City of London | H148: 1360 | I148: 347 | L148: 63 | M148: NHS Great Yarmouth and Waveney | N148: 54259 | O148: 14854
F149: 64 | G149: Colchester | H149: 31554 | I149: 8329 | L149: 64 | M149: NHS Greater Huddersfield | N149: 43575 | O149: 10954
F150: 65 | G150: Copeland | H150: 14879 | I150: 3641 | L150: 65 | M150: NHS Greater Preston | N150: 34877 | O150: 9358
F151: 66 | G151: Corby | H151: 9375 | I151: 2197 | L151: 66 | M151: NHS Greenwich | N151: 29005 | O151: 7744
F152: 67 | G152: Cornwall | H152: 131931 | I152: 33994 | L152: 67 | M152: NHS Guildford and Waverley | N152: 38451 | O152: 11741
F153: 68 | G153: Cotswold | H153: 21032 | I153: 5943 | L153: 68 | M153: NHS Halton | N153: 22264 | O153: 5112
F154: 69 | G154: County Durham | H154: 103425 | I154: 25439 | L154: 69 | M154: NHS Hambleton, Richmondshire and Whitby | N154: 36650 | O154: 9388
F155: 70 | G155: Coventry | H155: 49241 | I155: 13785 | L155: 70 | M155: NHS Hammersmith and Fulham | N155: 18906 | O155: 4726
F156: 71 | G156: Craven | H156: 14325 | I156: 4022 | L156: 71 | M156: NHS Hardwick | N156: 23262 | O156: 5637
F157: 72 | G157: Crawley | H157: 14597 | I157: 4504 | L157: 72 | M157: NHS Haringey | N157: 25974 | O157: 6314
F158: 73 | G158: Croydon | H158: 49335 | I158: 13623 | L158: 73 | M158: NHS Harrogate and Rural District | N158: 35814 | O158: 10301
F159: 74 | G159: Cumbria | H159: 115218 | I159: 29980 | L159: 74 | M159: NHS Harrow | N159: 37698 | O159: 10875
F160: 75 | G160: Dacorum | H160: 25348 | I160: 7592 | L160: 75 | M160: NHS Hartlepool and Stockton-on-Tees | N160: 51898 | O160: 13721
F161: 76 | G161: Darlington | H161: 20515 | I161: 5528 | L161: 76 | M161: NHS Hastings and Rother | N161: 47300 | O161: 13414
F162: 77 | G162: Dartford | H162: 15412 | I162: 4449 | L162: 77 | M162: NHS Havering | N162: 46241 | O162: 14249
F163: 78 | G163: Daventry | H163: 15911 | I163: 3618 | L163: 78 | M163: NHS Herefordshire | N163: 44817 | O163: 12118
F164: 79 | G164: Derby | H164: 40806 | I164: 12032 | L164: 79 | M164: NHS Herts Valleys | N164: 97883 | O164: 29187
F165: 80 | G165: Derbyshire | H165: 162714 | I165: 40909 | L165: 80 | M165: NHS Heywood, Middleton and Rochdale | N165: 34892 | O165: 8785
F166: 81 | G166: Derbyshire Dales | H166: 18238 | I166: 4705 | L166: 81 | M166: NHS High Weald Lewes Havens | N166: 39883 | O166: 11003
F167: 82 | G167: Devon | H167: 189568 | I167: 52967 | L167: 82 | M167: NHS Hillingdon | N167: 39516 | O167: 11355
F168: 83 | G168: Doncaster | H168: 56173 | I168: 14727 | L168: 83 | M168: NHS Horsham and Mid Sussex | N168: 45928 | O168: 13386
F169: 84 | G169: Dorset | H169: 117570 | I169: 34065 | L169: 84 | M169: NHS Hounslow | N169: 31166 | O169: 7976
F170: 85 | G170: Dover | H170: 25713 | I170: 6641 | L170: 85 | M170: NHS Hull | N170: 38521 | O170: 10110
F171: 86 | G171: Dudley | H171: 63122 | I171: 16521 | L171: 86 | M171: NHS Ipswich and East Suffolk | N171: 89528 | O171: 24876
F172: 87 | G172: Ealing | H172: 40404 | I172: 10795 | L172: 87 | M172: NHS Isle of Wight | N172: 37820 | O172: 10198
F173: 88 | G173: EAST | H173: 1163868 | I173: 321184 | L173: 88 | M173: NHS Islington | N173: 20450 | O173: 5194
F174: 89 | G174: East Cambridgeshire | H174: 16807 | I174: 4454 | L174: 89 | M174: NHS Kernow | N174: 135215 | O174: 34595
F175: 90 | G175: East Devon | H175: 41220 | I175: 12499 | L175: 90 | M175: NHS Kingston | N175: 23494 | O175: 6619
F176: 91 | G176: East Dorset | H176: 27235 | I176: 8213 | L176: 91 | M176: NHS Knowsley | N176: 25009 | O176: 6925
F177: 92 | G177: East Hampshire | H177: 26244 | I177: 7154 | L177: 92 | M177: NHS Lambeth | N177: 25738 | O177: 6850
F178: 93 | G178: East Hertfordshire | H178: 24916 | I178: 6745 | L178: 93 | M178: NHS Leeds North | N178: 38831 | O178: 11320
F179: 94 | G179: East Lindsey | H179: 39807 | I179: 9513 | L179: 94 | M179: NHS Leeds South and East | N179: 35705 | O179: 9252
F180: 95 | G180: EAST MIDLANDS | H180: 877557 | I180: 227318 | L180: 95 | M180: NHS Leeds West | N180: 45991 | O180: 12431
F181: 96 | G181: East Northamptonshire | H181: 17745 | I181: 4360 | L181: 96 | M181: NHS Leicester City | N181: 40725 | O181: 11400
F182: 97 | G182: East Riding of Yorkshire | H182: 82596 | I182: 20811 | L182: 97 | M182: NHS Lewisham | N182: 28075 | O182: 7722
F183: 98 | G183: East Staffordshire | H183: 21474 | I183: 5542 | L183: 98 | M183: NHS Lincolnshire East | N183: 61806 | O183: 15317
F184: 99 | G184: East Sussex | H184: 135632 | I184: 39991 | L184: 99 | M184: NHS Lincolnshire West | N184: 47427 | O184: 12300
F185: 100 | G185: Eastbourne | H185: 24838 | I185: 8134 | L185: 100 | M185: NHS Liverpool | N185: 71039 | O185: 19296
F186: 101 | G186: Eastleigh | H186: 24006 | I186: 6396 | L186: 101 | M186: NHS Luton | N186: 26173 | O186: 7543
F187: 102 | G187: Eden | H187: 13208 | I187: 3445 | L187: 102 | M187: NHS Manchester | N187: 50244 | O187: 13335
F188: 103 | G188: Elmbridge | H188: 23724 | I188: 7316 | L188: 103 | M188: NHS Mansfield and Ashfield | N188: 37504 | O188: 9316
F189: 104 | G189: Enfield | H189: 42045 | I189: 11754 | L189: 104 | M189: NHS Medway | N189: 43237 | O189: 10407
F190: 105 | G190: ENGLAND | H190: 9711572 | I190: 2621589 | L190: 105 | M190: NHS Merton | N190: 25362 | O190: 7039
F191: 106 | G191: Epping Forest | H191: 25251 | I191: 7353 | L191: 106 | M191: NHS Mid Essex | N191: 77717 | O191: 20328
F192: 107 | G192: Epsom and Ewell | H192: 14077 | I192: 3990 | L192: 107 | M192: NHS Milton Keynes | N192: 36046 | O192: 8433
F193: 108 | G193: Erewash | H193: 22464 | I193: 6084 | L193: 108 | M193: NHS Morcambe Bay | N193: 80024 | O193: 21161
F194: 109 | G194: Essex | H194: 291466 | I194: 79062 | L194: 109 | M194: NHS Nene | N194: 115193 | O194: 28489
F195: 110 | G195: Exeter | H195: 19955 | I195: 6142 | L195: 110 | M195: NHS Newark & Sherwood | N195: 26106 | O195: 6506
F196: 111 | G196: Fareham | H196: 26006 | I196: 7251 | L196: 111 | M196: NHS Newbury and District | N196: 19142 | O196: 4883
F197: 112 | G197: Fenland | H197: 21807 | I197: 5980 | L197: 112 | M197: NHS Newcastle Gateshead | N197: 81156 | O197: 22584
F198: 113 | G198: Forest Heath | H198: 11197 | I198: 2981 | L198: 113 | M198: NHS Newham | N198: 24331 | O198: 5891
F199: 114 | G199: Forest of Dean | H199: 19755 | I199: 4917 | L199: 114 | M199: NHS North & West Reading | N199: 18070 | O199: 4781
F200: 115 | G200: Fylde | H200: 20448 | I200: 5903 | L200: 115 | M200: NHS North Cumbria | N200: 72189 | O200: 18785
F201: 116 | G201: Gateshead | H201: 38336 | I201: 10243 | L201: 116 | M201: NHS North Derbyshire | N201: 62482 | O201: 15994
F202: 117 | G202: Gedling | H202: 23461 | I202: 6166 | L202: 117 | M202: NHS North Durham | N202: 48457 | O202: 11799
F203: 118 | G203: Gloucester | H203: 20448 | I203: 5542 | L203: 118 | M203: NHS North East Essex | N203: 74146 | O203: 19950
F204: 119 | G204: Gloucestershire | H204: 126844 | I204: 34525 | L204: 119 | M204: NHS North East Hampshire and Farnham | N204: 36079 | O204: 9528
F205: 120 | G205: Gosport | H205: 16281 | I205: 4425 | L205: 120 | M205: NHS North East Lincolnshire | N205: 31483 | O205: 8652
F206: 121 | G206: Gravesham | H206: 17965 | I206: 4920 | L206: 121 | M206: NHS North Hampshire | N206: 39379 | O206: 9954
F207: 122 | G207: Great Yarmouth | H207: 22919 | I207: 6056 | L207: 122 | M207: NHS North Kirklees | N207: 31031 | O207: 7657
F208: 123 | G208: Greater Manchester (Met County) | H208: 431058 | I208: 108910 | L208: 123 | M208: NHS North Lincolnshire | N208: 34823 | O208: 8883
F209: 124 | G209: Greenwich | H209: 28667 | I209: 7616 | L209: 124 | M209: NHS North Norfolk | N209: 50223 | O209: 13766
F210: 125 | G210: Guildford | H210: 23819 | I210: 6884 | L210: 125 | M210: NHS North Somerset | N210: 49726 | O210: 13819
F211: 126 | G211: Hackney | H211: 19332 | I211: 4877 | L211: 126 | M211: NHS North Staffordshire | N211: 47177 | O211: 11876
F212: 127 | G212: Halton | H212: 21539 | I212: 4953 | L212: 127 | M212: NHS North Tyneside | N212: 39838 | O212: 10833
F213: 128 | G213: Hambleton | H213: 22146 | I213: 5764 | L213: 128 | M213: NHS North West Surrey | N213: 61440 | O213: 18475
F214: 129 | G214: Hammersmith and Fulham | H214: 18465 | I214: 4592 | L214: 129 | M214: NHS Northern, Eastern and Western Devon | N214: 201395 | O214: 55737
F215: 130 | G215: Hampshire | H215: 279928 | I215: 77334 | L215: 130 | M215: NHS Northumberland | N215: 74515 | O215: 18784
F216: 131 | G216: Harborough | H216: 18550 | I216: 4789 | L216: 131 | M216: NHS Norwich | N216: 39067 | O216: 11696
F217: 132 | G217: Haringey | H217: 25303 | I217: 6067 | L217: 132 | M217: NHS Nottingham City | N217: 37566 | O217: 10809
F218: 133 | G218: Harlow | H218: 13123 | I218: 4085 | L218: 133 | M218: NHS Nottingham North and East | N218: 29449 | O218: 7605
F219: 134 | G219: Harrogate | H219: 35149 | I219: 9996 | L219: 134 | M219: NHS Nottingham West | N219: 23166 | O219: 6071
F220: 135 | G220: Harrow | H220: 36950 | I220: 10544 | L220: 135 | M220: NHS Oldham | N220: 36874 | O220: 8951
F221: 136 | G221: Hart | H221: 17771 | I221: 4513 | L221: 136 | M221: NHS Oxfordshire | N221: 118114 | O221: 33004
F222: 137 | G222: Hartlepool | H222: 17303 | I222: 4690 | L222: 137 | M222: NHS Portsmouth | N222: 29909 | O222: 8460
F223: 138 | G223: Hastings | H223: 17430 | I223: 4638 | L223: 138 | M223: NHS Redbridge | N223: 36748 | O223: 10548
F224: 139 | G224: Havant | H224: 28263 | I224: 8250 | L224: 139 | M224: NHS Redditch and Bromsgrove | N224: 36267 | O224: 9553
F225: 140 | G225: Havering | H225: 45859 | I225: 14004 | L225: 140 | M225: NHS Richmond | N225: 29563 | O225: 8060
F226: 141 | G226: Herefordshire, County of | H226: 43926 | I226: 11909 | L226: 141 | M226: NHS Rotherham | N226: 50465 | O226: 12557
F227: 142 | G227: Hertfordshire | H227: 194328 | I227: 57126 | L227: 142 | M227: NHS Rushcliffe | N227: 23798 | O227: 6709
F228: 143 | G228: Hertsmere | H228: 18302 | I228: 5604 | L228: 143 | M228: NHS Salford | N228: 36087 | O228: 9537
F229: 144 | G229: High Peak | H229: 18144 | I229: 4359 | L229: 144 | M229: NHS Sandwell and West Birmingham | N229: 64389 | O229: 18095
F230: 145 | G230: Hillingdon | H230: 38930 | I230: 10946 | L230: 145 | M230: NHS Scarborough and Ryedale | N230: 28016 | O230: 7381
F231: 146 | G231: Hinckley and Bosworth | H231: 22816 | I231: 5637 | L231: 146 | M231: NHS Sheffield | N231: 92712 | O231: 26048
F232: 147 | G232: Horsham | H232: 29583 | I232: 8362 | L232: 147 | M232: NHS Shropshire | N232: 74277 | O232: 19514
F233: 148 | G233: Hounslow | H233: 30416 | I233: 7743 | L233: 148 | M233: NHS Slough | N233: 14231 | O233: 3866
F234: 149 | G234: Huntingdonshire | H234: 32986 | I234: 8010 | L234: 149 | M234: NHS Solihull | N234: 44466 | O234: 12755
F235: 150 | G235: Hyndburn | H235: 14348 | I235: 3530 | L235: 150 | M235: NHS Somerset | N235: 131141 | O235: 36234
F236: 151 | G236: Ipswich | H236: 21725 | I236: 6472 | L236: 151 | M236: NHS South Cheshire | N236: 37368 | O236: 9573
F237: 152 | G237: Isle of Wight | H237: 37047 | I237: 10020 | L237: 152 | M237: NHS South Devon and Torbay | N237: 73729 | O237: 20372
F238: 153 | G238: Isles of Scilly | H238: 575 | I238: 154 | L238: 153 | M238: NHS South East Staffordshire and Seisdon Peninsula | N238: 48819 | O238: 11812
F239: 154 | G239: Islington | H239: 20010 | I239: 5028 | L239: 154 | M239: NHS South Eastern Hampshire | N239: 48479 | O239: 13776
F240: 155 | G240: Kensington and Chelsea | H240: 22627 | I240: 5487 | L240: 155 | M240: NHS South Gloucestershire | N240: 51389 | O240: 14046
F241: 156 | G241: Kent | H241: 300274 | I241: 80859 | L241: 156 | M241: NHS South Kent Coast | N241: 48000 | O241: 12655
F242: 157 | G242: Kettering | H242: 17599 | I242: 4430 | L242: 157 | M242: NHS South Lincolnshire | N242: 34291 | O242: 9236
F243: 158 | G243: King's Lynn and West Norfolk | H243: 37908 | I243: 10192 | L243: 158 | M243: NHS South Norfolk | N243: 54939 | O243: 14779
F244: 159 | G244: Kingston upon Hull, City of | H244: 38144 | I244: 10045 | L244: 159 | M244: NHS South Reading | N244: 10949 | O244: 3174
F245: 160 | G245: Kingston upon Thames | H245: 22984 | I245: 6560 | L245: 160 | M245: NHS South Sefton | N245: 32021 | O245: 9072
F246: 161 | G246: Kirklees | H246: 73178 | I246: 18194 | L246: 161 | M246: NHS South Tees | N246: 51929 | O246: 13427
F247: 162 | G247: Knowsley | H247: 24644 | I247: 6686 | L247: 162 | M247: NHS South Tyneside | N247: 29522 | O247: 8023
F248: 163 | G248: Lambeth | H248: 25348 | I248: 6701 | L248: 163 | M248: NHS South Warwickshire | N248: 57021 | O248: 15844
F249: 164 | G249: Lancashire | H249: 237437 | I249: 61407 | L249: 164 | M249: NHS South West Lincolnshire | N249: 27525 | O249: 6680
F250: 165 | G250: Lancaster | H250: 27678 | I250: 7440 | L250: 165 | M250: NHS South Worcestershire | N250: 67588 | O250: 18403
F251: 166 | G251: Leeds | H251: 119199 | I251: 32446 | L251: 166 | M251: NHS Southampton | N251: 33239 | O251: 9426
F252: 167 | G252: Leicester | H252: 40054 | I252: 11339 | L252: 167 | M252: NHS Southend | N252: 34487 | O252: 10176
F253: 168 | G253: Leicestershire | H253: 133433 | I253: 34789 | L253: 168 | M253: NHS Southern Derbyshire | N253: 97186 | O253: 26004
F254: 169 | G254: Lewes | H254: 24947 | I254: 7613 | L254: 169 | M254: NHS Southport and Formby | N254: 30587 | O254: 9331
F255: 170 | G255: Lewisham | H255: 27645 | I255: 7552 | L255: 170 | M255: NHS Southwark | N255: 25108 | O255: 6558
F256: 171 | G256: Lichfield | H256: 23570 | I256: 5543 | L256: 171 | M256: NHS St Helens | N256: 36020 | O256: 8633
F257: 172 | G257: Lincoln | H257: 14505 | I257: 4144 | L257: 172 | M257: NHS Stafford and Surrounds | N257: 34483 | O257: 8560
... 197 more rows

Sheet 2c) Intervention costs
G13: Selected intervention: | H13: =VLOOKUP('2a) Interventions'!$G$79,'2a) Interventions'!$F$82:$G$85,2) -> Otago strength and balance exercise
G15: Include a cost for evaluation interventions?
G17: Cost for implementation of the intervention:
G19: Resource | H19: Cost per person | I19: Total cost
G20: Staff time | H20: =IF(I20="N/A","N/A",I20/TotalPop) -> 345.4 | I20: =VLOOKUP(IntChoice,$AK$68:$AO$71,3) -> 345308.8144
G21: Staff training | H21: =IF(I21="N/A","N/A",I21/TotalPop) -> 1.71545288 | I21: =VLOOKUP(IntChoice,$AK$68:$AO$71,4) -> 1715
G22: Equipment/Facilities | H22: =IF(I22="N/A","N/A",I22/TotalPop) -> 23.18 | I22: =VLOOKUP(IntChoice,$AK$68:$AO$71,5) -> 23173.88048
G23: Transport | H23: =IF(I23="N/A","N/A",I23/TotalPop) -> 50 | I23: =VLOOKUP(IntChoice,$AK$68:$AP$71,6) -> 49986.8
G24: Evaluation cost | H24: =I24/TotalPop -> 21.01477264 | I24: =IF(AL62=TRUE,VLOOKUP(IntChoice,$AK$68:$AR$71,8)*0.05,0) -> 21009.22474
G25: Total | H25: =I25/TotalPop -> 441.3102255 | I25: =VLOOKUP(IntChoice,$AK$68:$AQ$71,7) -> 441193.7196
G27: =IF(IntChoice=4,"Please note: for HAM it is assumed that the assessment element of the programme is exclusively delivered by occupational therapists, in line with the clinical evidence (see the accompanying report for more information).","") -> 
AL61: Evaluation cost cell link:
AL62: TRUE
AL66: VLOOKUP Tables - Total costs
AM67: Staff costs | AN67: Staff training | AO67: Equipment | AP67: Transport | AQ67: Total | AR67: Total (w/o evaluation cost)
AK68: 1 | AL68: Otago | AM68: =L92 -> 345308.8144 | AN68: =I102 -> 1715 | AO68: =J115+J116 -> 23173.88048 | AP68: =H110 -> 49986.8 | AQ68: =SUM(AM68:AP68)+IF($AL$62=TRUE,(AR68*0.05),0) -> 441193.7196 | AR68: =SUM(AM68:AP68) -> 420184.4949
G69: STAFF UNIT COSTS | AK69: 2 | AL69: FaME | AM69: =N131 -> 121500 | AN69: =I141 -> 4225 | AO69: =L158 -> 47179.5 | AP69: =H149 -> 37500 | AQ69: =SUM(AM69:AP69)+IF($AL$62=TRUE,(AR69*0.05),0) -> 220924.725 | AR69: =SUM(AM69:AP69) -> 210404.5
AK70: 3 | AL70: Tai Chi | AM70: =N174 -> 238140 | AN70: =I184 -> 3575 | AO70: =K199 -> 78500 | AP70: =H192 -> 36750 | AQ70: 374813.25 | AR70: 356965
G71: Staff type | H71: NHS Band | I71: Cost per hour | AK71: 4 | AL71: HAM | AM71: =L214 -> 151160.0832 | AO71: =M231 -> 84410.73731 | AQ71: 247349.3615 | AR71: 235570.8205
G72: Physiotherapist | H72: Band 6 | I72: 42
G73: Occupational therapist | H73: Band 6 | I73: 42
G74: Technical assistant | H74: Band 4 | I74: 30
G75: Leisure service | H75: N/A | I75: 15.4
G76: Self-employed | H76: N/A | I76: 30
G77: Other
G81: Cost of Otago Individual Exercise
G83: 1. Staff time
G85: Staff required | H85: Total hours required per person | I85: Delivered by | J85: No. of hours per person | K85: Cost per person | L85: Cost for total population
G86: Physiotherapist | H86: 10 | I86: 0.5 | J86: =$H$86*I86 -> 5 | K86: =J86*$I$72 -> 210 | L86: =K86*'2b) Population'!$J$35 -> 209944.56
G87: Occupational therapist | I87: 0 | J87: =$H$86*I87 -> 0 | K87: =J87*$I$73 -> 0 | L87: =K87*'2b) Population'!$J$35 -> 0
G88: Technical assistant | I88: 0.4 | J88: 4 | K88: =J88*$I$74 -> 120 | L88: =K88*'2b) Population'!$J$35 -> 119968.32
G89: Leisure service | I89: 0.1 | J89: 1 | K89: =J89*$I$75 -> 15.4 | L89: =K89*'2b) Population'!$J$35 -> 15395.9344
G90: Self-employed | I90: 0 | J90: 0 | K90: =J90*$I$76 -> 0 | L90: =K90*'2b) Population'!$J$35 -> 0
G91: Other | I91: 0 | J91: 0 | K91: =J91*$I$77 -> 0 | L91: =K91*'2b) Population'!$J$35 -> 0
G92: Total cost of staff time | H92: N/A | I92: =SUM(I86:I91) -> 1 | J92: =SUM(J86:J91) -> 10 | K92: =SUM(K86:K91) -> 345.4 | L92: =SUM(L86:L91) -> 345308.8144
G94: 2. Staff training
G96: Parameter | I96: Value
G97: Max no. of people supervised per staff member | I97: 100
G98: Total number of staff required | I98: =ROUNDUP(TotalPop/I97,0) -> 10
G99: % of staff members that require training | I99: 0.5
G100: Cost to train staff | I100: 343
G101: Per person cost of training | I101: =I102/TotalPop -> 1.71545288
G102: Total cost of staff training | I102: =I100*I98*I99 -> 1715
G104: 3. Staff travel costs
G106: Parameter | H106: Value
G107: Cost per journey | H107: 10
G108: No. of sessions per person | H108: 5
G109: Total cost per person | H109: =H107*H108 -> 50
G110: Total cost for all | H110: =H109*TotalPop -> 49986.8
G112: 4. Equipment cost
G114: Resource | H114: Volume required per person | I114: Cost per person | J114: Total cost
G115: Ankle weights | H115: 1 | I115: 20.48 | J115: =H115*I115*TotalPop -> 20474.59328
G116: Manual | H116: 1 | I116: 2.7 | J116: =H116*I116*TotalPop -> 2699.2872
G120: Cost of FaME Group Exercise
G122: 1. Staff time
G124: Staff required | H124: Total hours required per cohort | I124: Delivered by | J124: No. of hours per cohort | K124: Cost per cohort | L124: Number of people per cohort | M124: Number of cohorts in population | N124: Total cost | O124: Total cost (per person)
G125: Physiotherapist | H125: 37.5 | I125: 0.2 | J125: =H125*I125 -> 7.5 | K125: =J125*$I$72 -> 315 | L125: 10 | M125: =ROUNDUP(TotalPop/L125,0) -> 100 | N125: =M125*K125 -> 31500 | O125: =N125/TotalPop -> 31.5083182
G126: Occupational therapist | I126: 0 | J126: =H126*I126 -> 0 | K126: =J126*$I$73 -> 0 | N126: =M125*K126 -> 0 | O126: 0
G127: Technical assistant | I127: 0.45 | J127: =H125*I127 -> 16.875 | K127: =J127*$I$74 -> 506.25 | N127: =M125*K127 -> 50625 | O127: 50.63836853
G128: Leisure service | I128: 0 | J128: =H125*I128 -> 0 | K128: =J128*$I$75 -> 0 | N128: =M125*K128 -> 0 | O128: =N128/TotalPop -> 0
G129: Self-employed | I129: 0.35 | J129: =H125*I129 -> 13.125 | K129: =J129*$I$76 -> 393.75 | N129: =M125*K129 -> 39375 | O129: 39.38539775
G130: Other | I130: 0 | J130: =H125*I130 -> 0 | K130: =J130*$I$77 -> 0 | N130: =M125*K130 -> 0 | O130: 0
G131: Total cost of staff time | H131: N/A | I131: =SUM(I125:I130) -> 1 | J131: =SUM(J125:J130) -> 37.5 | K131: =SUM(K125:K130) -> 1215 | L131: N/A | M131: N/A | N131: =SUM(N125:N130) -> 121500 | O131: 121.5320845
G133: 2. Staff training
G135: Parameter | I135: Value
G136: Max no. of people supervised per staff member | I136: 80
G137: Total number of staff required | I137: =ROUNDUP(TotalPop/I136,0) -> 13
G138: % of staff members that require training | I138: 0.5
G139: Cost to train staff | I139: 650
G140: Per person cost of training | I140: =I141/TotalPop -> 4.226115695
G141: Total cost of staff training | I141: =I139*I137*I138 -> 4225
G143: 3. Staff travel costs
G145: Parameter | H145: Value
G146: Cost per journey | H146: 10
G147: Total number of sessions | H147: =H125*M125 -> 3750
G148: Consecutive sessions | H148: 0
G149: Total cost for all staff | H149: =IFERROR(H146*(H147/H148),H146*H147) -> 37500
G151: 4. Equipment cost
G153: Resource | H153: Hours/volume required | I153: Cost per hour/volume | J153: No. of cohorts using resource | K153: Cost per cohort | L153: Total cost | M153: Total cost (per person)
G154: Community centre | H154: 24 | I154: 15 | J154: N/A | K154: =I154*H154 -> 360 | L154: =K154*$M$125 -> 36000 | M154: =L154/TotalPop -> 36.00950651
G155: TheraBand | H155: 10 | I155: 8.13 | J155: 1 | K155: =I155*H155 -> 81.3 | L155: =K155*(ROUNDUP(($M$125/$J$155),0)) -> 8130 | M155: =L155/TotalPop -> 8.132146887
G156: Manual | H156: 10 | I156: 2.7 | J156: 1 | K156: =I156*H156 -> 27 | L156: =K156*(ROUNDUP(($M$125/$J$156),0)) -> 2700 | M156: =L156/TotalPop -> 2.700712988
G157: Floor mat | H157: 10 | I157: 6.99 | J157: 20 | K157: =I157*H157 -> 69.9 | L157: =K157*(ROUNDUP(($M$125/$J$157),0)) -> 349.5 | M157: =L157/TotalPop -> 0.3495922924
G158: Total equipment costs | H158: N/A | I158: N/A | J158: N/A | K158: =SUM(K154:K157) -> 538.2 | L158: =SUM(L154:L157) -> 47179.5 | M158: =SUM(M154:M157) -> 47.19195868
G163: Cost of Tai Chi Group Exercise
G165: 1. Staff time
G167: Staff required | H167: Total hours required per cohort | I167: Delivered by | J167: No. of hours per cohort | K167: Cost per cohort | L167: Number of people per cohort | M167: Number of cohorts in population | N167: Total cost | O167: Total cost (per person)
G168: Physiotherapist | H168: 73.5 | I168: 0.2 | J168: =H168*I168 -> 14.7 | K168: =J168*$I$72 -> 617.4 | L168: 10 | M168: =ROUNDUP(TotalPop/L168,0) -> 100 | N168: =M168*K168 -> 61740 | O168: =N168/TotalPop -> 61.75630366
G169: Occupational therapist | I169: 0 | J169: =H169*I169 -> 0 | K169: =J169*$I$73 -> 0 | N169: =M168*K169 -> 0 | O169: 0
G170: Technical assistant | I170: 0.2 | J170: =H168*I170 -> 14.7 | K170: =J170*$I$74 -> 441 | N170: =M168*K170 -> 44100 | O170: 44.11164547
G171: Leisure service | I171: 0 | J171: =H168*I171 -> 0 | K171: =J171*$I$75 -> 0 | N171: =M168*K171 -> 0 | O171: 0
G172: Self-employed | I172: 0.6 | J172: =H168*I172 -> 44.1 | K172: =J172*$I$76 -> 1323 | N172: =M168*K172 -> 132300 | O172: 132.3349364
G173: Other | I173: 0 | J173: =H168*I173 -> 0 | K173: =J173*$I$77 -> 0 | N173: =M168*K173 -> 0 | O173: 0
G174: Total cost of staff time | H174: N/A | I174: =SUM(I168:I173) -> 1 | J174: =SUM(J168:J173) -> 73.5 | K174: =SUM(K168:K173) -> 2381.4 | L174: N/A | M174: N/A | N174: =SUM(N168:N173) -> 238140 | O174: 238.2028856
G176: 2. Staff training
G178: Parameter | I178: Value
G179: Max no. of people supervised per staff member | I179: 80
G180: Total number of staff required | I180: =ROUNDUP(TotalPop/I179,0) -> 13
G181: % of staff members that require training | I181: 0.5
G182: Cost to train staff | I182: 550
G183: Per person cost of training | I183: =I184/TotalPop -> 3.575944049
G184: Total cost of staff training | I184: =I182*I180*I181 -> 3575
G186: 3. Staff travel costs
G188: Parameter | H188: Value
G189: Cost per journey | H189: 10
G190: Total number of sessions | H190: =H168*M168 -> 7350
G191: Consecutive sessions | H191: 2
G192: Total cost for all staff | H192: =IFERROR(H189*(H190/H191),H189*H190) -> 36750
G194: 4. Equipment cost
G196: Resource | H196: Hours/volume required | I196: Cost per hour/volume | J196: Cost per cohort | K196: Total cost | L196: Total cost (per person)
G197: Community centre | H197: 49 | I197: 15 | J197: =I197*H197 -> 735 | K197: =J197*$M$168 -> 73500 | L197: =K197/TotalPop -> 73.51940912
G198: DVD (w. instructions) | H198: 10 | I198: 5 | J198: =I198*H198 -> 50 | K198: =J198*$M$168 -> 5000 | L198: =K198/TotalPop -> 5.001320349
G199: Total equipment costs | H199: N/A | I199: N/A | J199: =SUM(J197:J198) -> 785 | K199: =SUM(K197:K198) -> 78500 | L199: =SUM(L197:L198) -> 78.52072947
G203: Cost of home assessment and modification
G205: 1. Cost of assessment
G207: Staff required | H207: Total hours required per person | I207: Delivered by | J207: No. of hours per person | K207: Cost per person | L207: Total cost
G208: Physiotherapist | H208: 3.6 | I208: 0 | J208: =H208*I208 -> 0 | K208: =J208*$I$72 -> 0 | L208: =K208*TotalPop -> 0
G209: Occupational therapist | I209: 1 | J209: =$H$208*I209 -> 3.6 | K209: =J209*$I$73 -> 151.2 | L209: =K209*TotalPop -> 151160.0832
G210: Technical assistant | I210: 0 | J210: =$H$208*I210 -> 0 | K210: =J210*$I$74 -> 0 | L210: 0
G211: Leisure service | I211: 0 | J211: =$H$208*I211 -> 0 | K211: =J211*$I$75 -> 0 | L211: 0
G212: Self-employed | I212: 0 | J212: =$H$208*I212 -> 0 | K212: =J212*$I$76 -> 0 | L212: 0
G213: Other | I213: 0 | J213: =$H$208*I213 -> 0 | K213: =J213*$I$77 -> 0 | L213: 0
G214: Total cost of staff time | H214: N/A | I214: =SUM(I208:I213) -> 1 | J214: =SUM(J208:J213) -> 3.6 | K214: =SUM(K208:K213) -> 151.2 | L214: =SUM(L208:L213) -> 151160.0832
G216: 2. Cost of modifications
G218: Modification | H218: Recommended for | I218: Compliance | J218: Cost per mod. | K218: % self-funded | L218: Cost per person | M218: Total cost
G219: Use non-slip bathmat | H219: 0.24 | I219: 0.54 | J219: 6.49 | K219: 0.5 | L219: =J219*I219*H219*(1-K219) -> 0.420552 | M219: =L219*TotalPop -> 420.4409743
G220: Add rail to stairs | H220: 0.12 | I220: 0.19 | J220: 56.25 | K220: 0.5 | L220: =J220*I220*H220*(1-K220) -> 0.64125 | M220: 641.08071
G221: Move electrical cord | H221: 0.12 | I221: 0.67 | J221: 10 | K221: 0.5 | L221: 0.402 | M221: 401.893872
G222: New footwear | H222: 0.24 | I222: 0.54 | J222: 40 | K222: 1 | L222: 0 | M222: 0
G223: Add grab rails | H223: 0.149 | I223: 0.78 | J223: 28 | K223: 0.5 | L223: =J223*I223*H223*(1-K223) -> 1.62708 | M223: =L223*TotalPop -> 1626.650451
G224: Use a raised toilet seat | H224: 0.238 | I224: 0.543 | J224: 15.54 | K224: 0.5 | L224: =J224*I224*H224*(1-K224) -> 1.00414818 | M224: 1003.883085
G225: Add shower seat | H225: 0.127 | I225: 0.826 | J225: 39.95 | K225: 0.5 | L225: 2.09541745 | M225: 2094.86426
G226: Use of a rollator | H226: 0.204 | I226: 0.578 | J226: 55 | K226: 0.5 | L226: =J226*I226*H226*(1-K226) -> 3.24258 | M226: 3241.723959
G227: New lightbulbs | H227: 0.11 | I227: 0.7 | J227: 4.29 | K227: 1 | L227: =J227*I227*H227*(1-K227) -> 0 | M227: 0
G228: Painting rooms lighter | H228: 0.1 | I228: 0.2 | J228: 296 | K228: 1 | L228: =J228*I228*H228*(1-K228) -> 0 | M228: 0
G229: Wet room conversion | H229: 0.1 | I229: 0.2 | J229: 7500 | K229: 0.5 | L229: =J229*I229*H229*(1-K229) -> 75 | M229: 74980.2
G230: Other | H230: 0 | L230: =J230*I230*H230*(1-K230) -> 0 | M230: 0
G231: Total equipment costs | H231: N/A | I231: N/A | J231: N/A | K231: N/A | L231: =SUM(L219:L230) -> 84.43302763 | M231: =SUM(M219:M230) -> 84410.73731

Sheet 2d) Other resources
G13: Primary & secondary care costs:
G15: Resource | I15: Unit Cost
G16: GP visit | I16: 36
G17: A&E visit - admission | I17: 100.53
G18: A&E visit - no admission | I18: 90.29
G19: Ambulance call-out to hospital | I19: 236
G20: Non-hip fracture - hospital inpatient stay | I20: 7949
G21: Hip fracture - hospital inpatient stay | I21: 8955.49
G22: Hip fracture - 1st year follow-up costs | I22: 527.34
G23: Hip fracture - 2nd year costs | I23: 2211.73
G24: Geriatric long-stay | I24: 14659.28
G25: Cost of a death in hospital | I25: 0
G29: Social care costs:
G31: Resource | I31: Weekly cost | J31: % self-funded | K31: Total cost
G32: NHS care home | H32: Nursing care | I32: 113 | J32: 0 | K32: =I32*(1-J32)+I33*(1-J33) -> 479.85
H33: Residential care | I33: 550 | J33: 0.333
G34: Local authority residential care | H34: nursing care | I34: 0 | J34: 0 | K34: =I34*(1-J34)+I35*(1-J35) -> 371.85
H35: residential care | I35: 555 | J35: 0.33
G36: Non-NHS care home | H36: nursing care | I36: 113 | J36: 1 | K36: =I36*(1-J36)+I37*(1-J37) -> 0
H37: residential care | I37: 550 | J37: 1
G38: Care package at usual residence | I38: N/A | J38: N/A | K38: 1906
K91: Unit Costs
K93: Non-hip fracture inpatient | O93: Hip fracture inpatient | S93: Geriatric long stay | V93: NHS Care home
L94: =NetBenefit -> 528.6417325 | P94: =NetBenefit -> 528.6417325 | T94: =NetBenefit -> 528.6417325 | W94: =NetBenefit -> 528.6417325
K95: 6000 | L95: 487.2044853 | O95: 7000 | P95: 509.9630062 | S95: 10000 | T95: 520.4728802 | V95: 500 | W95: 550.6673624
K96: 6500 | L96: 497.834872 | O96: 7500 | P96: 514.738977 | S96: 11000 | T96: 522.2261237 | V96: 525 | W96: 552.0902068
K97: 7000 | L97: 508.4652586 | O97: 8000 | P97: 519.5149478 | S97: 12000 | T97: 523.9793672 | V97: 550 | W97: 553.5130511
K98: 7500 | L98: 519.0956453 | O98: 8500 | P98: 524.2909186 | S98: 13000 | T98: 525.7326107 | V98: 575 | W98: 554.9358954
K99: 8000 | L99: 529.726032 | O99: 9000 | P99: 529.0668894 | S99: 14000 | T99: 527.4858542 | V99: 600 | W99: 556.3587397
K100: 8500 | L100: 540.3564186 | O100: 9500 | P100: 533.8428603 | S100: 15000 | T100: 529.2390976 | V100: 625 | W100: 557.781584
K101: 9000 | L101: 550.9868053 | O101: 10000 | P101: 538.6188311 | S101: 16000 | T101: 530.9923411 | V101: 650 | W101: 559.2044283
K102: 9500 | L102: 561.617192 | O102: 10500 | P102: 543.3948019 | S102: 17000 | T102: 532.7455846 | V102: 675 | W102: 560.6272726
K103: 10000 | L103: 572.2475786 | O103: 11000 | P103: 548.1707727 | S103: 18000 | T103: 534.4988281 | V103: 700 | W103: 562.0501169
K104: =I20 -> 7949 | L104: =NetBenefit -> 528.6417325 | O104: =I21 -> 8955.49 | P104: =NetBenefit -> 528.6417325 | S104: 19000 | T104: 536.2520716 | V104: 725 | W104: 563.4729612
S105: 20000 | T105: 538.005315 | V105: 750 | W105: 564.8958055
S106: =I24 -> 14659.28 | T106: =NetBenefit -> 528.6417325 | V106: =I32 -> 113 | W106: =W94 -> 528.6417325

Sheet 2e) Intervention effectiveness
G13: Selected intervention: | H13: =VLOOKUP('2a) Interventions'!$G$79,'2a) Interventions'!$F$82:$G$85,2) -> Otago strength and balance exercise
G15: Rate of falls with each intervention:
G16: Parameter | H16: Mean | I16: 95% CI | J16: Data source
G17: Rate of falls in study control group | H17: =VLOOKUP('2a) Interventions'!$G$79,'2e) Intervention effectiveness'!$AF$82:$AJ$85,3) -> 1.06 | I17: N/A | J17: =VLOOKUP(IntChoice,'2a) Interventions'!$F$90:$I$93,3) -> Roberson et al. 2002
G18: Incidence rate ratio | H18: =VLOOKUP('2a) Interventions'!$G$79,'2e) Intervention effectiveness'!$AF$82:$AJ$85,4) -> 0.65 | I18: =VLOOKUP('2a) Interventions'!$G$79,'2e) Intervention effectiveness'!$AF$82:$AJ$85,5) -> 0.57 to 0.75 | J18: =VLOOKUP(IntChoice,'2a) Interventions'!$F$90:$I$93,4) -> Roberson et al. 2002
G19: Reduction in efficacy - year 2 | H19: 0.5 | I19: N/A | J19: Assumption
G21: Number of falls over two years:
G22: Treatment group | H22: Value
G23: =H13 -> Otago strength and balance exercise | H23: =((TotalPop*H17)*H18)+((TotalPop*H17)*(H18+((1-H18)/2))) -> 1563.087236
G24: Usual care | H24: =(TotalPop*H17)*2 -> 2119.44032
G27: Severity of falls:
G28: Event | H28: Rate | I28: Number over intervention period
I29: =VLOOKUP('2a) Interventions'!$G$79,'2a) Interventions'!$F$90:$G$93,2) -> Otago | J29: Usual care
G30: Serious falls | H30: 0.2 | I30: =H23*$H$30 -> 312.6174472 | J30: =H24*$H$30 -> 423.888064
G31: Of which:
G32: Require a GP visit | H32: 0.51 | I32: =I30*H32 -> 159.4348981 | J32: =J30*H32 -> 216.1829126
G33: Require an ambulance call-out | H33: 0.61 | I33: =I30*H33 -> 190.6966428 | J33: =J30*H33 -> 258.571719
G34: Require an A&E visit | H34: 0.8 | I34: =I30*H34 -> 250.0939578 | J34: =J30*H34 -> 339.1104512
G35: Of which:
G36: Require admission | H36: 0.35 | I36: =H36*I34 -> 87.53288522 | J36: =H36*J34 -> 118.6886579
G37: Of which:
G38: Are due to hip fractures | H38: 0.31 | I38: =H38*I36 -> 27.13519442 | J38: =H38*J36 -> 36.79348396
G42: Destination at discharge from hospital:
G43: Location | H43: Rate | I43: Number over intervention period
I44: =VLOOKUP('2a) Interventions'!$G$79,'2a) Interventions'!$F$90:$G$93,2) -> Otago | J44: Usual care
G45: Return to own usual residence | H45: =1-SUM(H46:H50) -> 0.8834 | I45: =H45*$I$36 -> 77.3265508 | J45: =H45*$J$36 -> 104.8495604
G46: Geriatric long stay on NHS ward | H46: 0.0569 | I46: =GenWard*$I$36 -> 4.980621169 | J46: =GenWard*$J$36 -> 6.753384636
G47: NHS care home | H47: 0.0146 | I47: =Move1*$I$36 -> 1.277980124 | J47: =Move1*$J$36 -> 1.732854406
G48: Local authority residential home | H48: 0.0056 | I48: =Move2*$I$36 -> 0.4901841572 | J48: =Move2*$J$36 -> 0.6646564844
G49: Non-NHS care home | H49: 0.0156 | I49: =Move3*$I$36 -> 1.365513009 | J49: =Move3*$J$36 -> 1.851543064
G50: Died | H50: 0.0239 | I50: =Death*$I$36 -> 2.092035957 | J50: =Death*$J$36 -> 2.836658924
G54: Mean cost per serious fall | I54: =Q125 -> 4174.28992
G79: Default values (do not change): | N79: New values (add new data here): | AF79: Live
G80: Intervention | H80: Baseline rate of falls | I80: Incidence rate ratio | N80: Intervention | O80: Baseline rate of falls | P80: Incidence rate ratio | AG80: Intervention | AH80: Baseline rate of falls | AI80: Incidence rate ratio
H81: Mean | I81: Mean | J81: 95% CI | O81: Mean | P81: Mean | Q81: 95% CI | AH81: Mean | AI81: Mean | AJ81: 95% CI
G82: Otago | H82: 1.06 | I82: 0.65 | J82: 0.57 to 0.75 | N82: Otago | AF82: 1 | AG82: Otago | AH82: =IF(O82="",H82,O82) -> 1.06 | AI82: =IF(P82="",I82,P82) -> 0.65 | AJ82: 0.57 to 0.75
G83: FaME | H83: 0.79 | I83: 0.825 | J83: N/A | N83: FaME | AF83: 2 | AG83: FaME | AH83: =IF(O83="",H83,O83) -> 0.79 | AI83: =IF(P83="",I83,P83) -> 0.825 | AJ83: =IF(Q83="",J83,Q83) -> N/A
G84: Tai Chi | H84: 1.01 | I84: 0.72 | J84: N/A | N84: Tai Chi | AF84: 3 | AG84: Tai Chi | AH84: =IF(O84="",H84,O84) -> 1.01 | AI84: 0.72 | AJ84: N/A
G85: HAM | H85: 2.24 | I85: 0.69 | J85: 0.55 to 0.86 | N85: HAM | AF85: 4 | AG85: HAM | AH85: =IF(O85="",H85,O85) -> 2.24 | AI85: 0.69 | AJ85: 0.55 to 0.86
G88: Year 2 incidence rate ratio, FaME only: | I88: 0.805
P111: Mean cost per fall calculation:
G113: Baseline rate of falls | K113: Incidence rate ratio | P113: GP visit | Q113: =FallsGP*'2d) Other resources'!I16 -> 18.36
H114: =NetBenefit -> 528.6417325 | L114: =NetBenefit -> 528.6417325 | P114: Ambulance call-out | Q114: =FallsAmb*'2d) Other resources'!I19 -> 143.96
G115: 0 | H115: -441.3102255 | K115: 0.25 | L115: 1637.158256 | P115: A&E - no admission | Q115: =FallsAE*AdmAE*'2d) Other resources'!I17 -> 28.1484
G116: 0.25 | H116: -212.5479713 | K116: 0.4 | L116: 1221.46456 | P116: A&E - admission | Q116: =FallsAE*(1-AdmAE)*'2d) Other resources'!I18 -> 46.9508
G117: 0.5 | H117: 16.21428299 | K117: 0.55 | L117: 805.7708634 | P117: Inpatient - hip fracture | Q117: =FallsAE*AdmAE*HipAdm*('2d) Other resources'!I21+'2d) Other resources'!I22+'2d) Other resources'!I23) -> 1015.087808
G118: 0.75 | H118: 244.9765372 | K118: 0.7 | L118: 390.0771671 | P118: Inpatient - non-hip fracture | Q118: =FallsAE*AdmAE*(1-HipAdm)*'2d) Other resources'!I20 -> 1535.7468
G119: 1 | H119: 473.7387915 | K119: 0.85 | L119: -25.61652922 | P119: Geriatric long stay | Q119: =FallsAE*AdmAE*GenWard*'2d) Other resources'!I24 -> 233.551649
G120: 1.25 | H120: 702.5010458 | K120: 1 | L120: -441.3102255 | P120: Hospital death | Q120: =FallsAE*AdmAE*Death*'2d) Other resources'!I25 -> 0
G121: 1.5 | H121: 931.2633 | K121: 1.15 | L121: -857.0039218 | P121: NHS care home | Q121: =FallsAE*AdmAE*Move1*(SocialCost1*130) -> 255.011484
G122: 1.75 | H122: 1160.025554 | K122: 1.3 | L122: -1272.697618 | P122: Local authority residential home | Q122: =FallsAE*AdmAE*Move2*(SocialCost2*130) -> 75.797904
G123: 2 | H123: 1388.787809 | K123: 1.45 | L123: -1688.391314 | P123: Non-NHS care home | Q123: =FallsAE*AdmAE*Move3*(SocialCost3*130) -> 0
G124: 2.25 | H124: 1617.550063 | K124: 1.6 | L124: -2104.085011 | P124: Social care package | Q124: =FallsAE*FallsAmb*H45*'2d) Other resources'!K38 -> 821.6750752
G125: 2.5 | H125: 1846.312317 | K125: 1.75 | L125: -2519.778707 | P125: TOTAL | Q125: =SUM(Q113:Q124) -> 4174.28992
G126: 2.75 | H126: 2075.074571 | K126: =IncRateRatio -> 0.65 | L126: =L114 -> 528.6417325
G127: 3 | H127: 2303.836826
G128: 3.25 | H128: 2532.59908
G129: 3.5 | H129: 2761.361334
G130: 3.75 | H130: 2990.123588
G131: 4 | H131: 3218.885843
G132: 4.25 | H132: 3447.648097
G133: 4.5 | H133: 3676.410351
G134: 4.75 | H134: 3905.172605
G135: 5 | H135: 4133.93486
G136: 5.25 | H136: 4362.697114
G137: 5.5 | H137: 4591.459368
G138: 5.75 | H138: 4820.221622
G139: 6 | H139: 5048.983877
G140: 6.25 | H140: 5277.746131
G141: 6.5 | H141: 5506.508385
G142: 6.75 | H142: 5735.270639
G143: 7 | H143: 5964.032894
G144: 7.25 | H144: 6192.795148
G145: 7.5 | H145: 6421.557402
G146: 7.75 | H146: 6650.319656
G147: 8 | H147: 6879.081911
G148: 8.25 | H148: 7107.844165
G149: 8.5 | H149: 7336.606419
G150: =BaselineFall -> 1.06 | H150: =H114 -> 528.6417325
J160: Serious falls | M160: Serious falls requiring a GP visit | P160: Serious falls requiring an ambulance call-out | S160: Serious falls requiring an A&E visit | V160: A&E attendances requiring admission | Y160: Admissions that are due to hip fractures
K161: =NetBenefit -> 528.6417325 | N161: ='3a) Results summary'!J54 -> 528.6417325 | Q161: ='3a) Results summary'!J54 -> 528.6417325 | T161: ='3a) Results summary'!J54 -> 528.6417325 | W161: ='3a) Results summary'!J54 -> 528.6417325 | Z161: ='3a) Results summary'!J54 -> 528.6417325
J162: 0 | K162: -441.3102255 | M162: 0 | N162: 526.6212988 | P162: 0 | Q162: 512.7995952 | S162: 0 | T162: -124.4179993 | V162: 0 | W162: -116.4691992 | Y162: 0 | Z162: 426.0937659
J163: 0.05 | K163: -198.822236 | M163: 0.1 | N163: 527.0174623 | P163: 0.1 | Q163: 515.3966669 | S163: 0.1 | T163: -42.78553282 | V163: 0.1 | W163: 67.84820986 | Y163: 0.1 | Z163: 459.1737551
J164: 0.1 | K164: 43.6657535 | M164: 0.2 | N164: 527.4136257 | P164: 0.2 | Q164: 517.9937386 | S164: 0.2 | T164: 38.84693366 | V164: 0.2 | W164: 252.1656189 | Y164: 0.2 | Z164: 492.2537444
J165: 0.15 | K165: 286.153743 | M165: 0.3 | N165: 527.8097892 | P165: 0.3 | Q165: 520.5908103 | S165: 0.3 | T165: 120.4794001 | V165: 0.3 | W165: 436.483028 | Y165: 0.3 | Z165: 525.3337336
J166: 0.2 | K166: 528.6417325 | M166: 0.4 | N166: 528.2059527 | P166: 0.4 | Q166: 523.187882 | S166: 0.4 | T166: 202.1118666 | V166: 0.4 | W166: 620.800437 | Y166: 0.4 | Z166: 558.4137228
J167: 0.25 | K167: 771.129722 | M167: 0.5 | N167: 528.6021162 | P167: 0.5 | Q167: 525.7849537 | S167: 0.5 | T167: 283.7443331 | V167: 0.5 | W167: 805.1178461 | Y167: 0.5 | Z167: 591.4937121
J168: 0.3 | K168: 1013.617712 | M168: 0.6 | N168: 528.9982796 | P168: 0.6 | Q168: 528.3820253 | S168: 0.6 | T168: 365.3767996 | V168: 0.6 | W168: 989.4352552 | Y168: 0.6 | Z168: 624.5737013
J169: =H30 -> 0.2 | K169: =NetBenefit -> 528.6417325 | M169: 0.7 | N169: 529.3944431 | P169: 0.7 | Q169: 530.979097 | S169: 0.7 | T169: 447.009266 | V169: 0.7 | W169: 1173.752664 | Y169: 0.7 | Z169: 657.6536905
M170: 0.8 | N170: 529.7906066 | P170: 0.8 | Q170: 533.5761687 | S170: 0.8 | T170: 528.6417325 | V170: 0.8 | W170: 1358.070073 | Y170: 0.8 | Z170: 690.7336798
M171: 0.9 | N171: 530.1867701 | P171: 0.9 | Q171: 536.1732404 | S171: 0.9 | T171: 610.274199 | V171: 0.9 | W171: 1542.387482 | Y171: 0.9 | Z171: 723.813669
M172: 1 | N172: 530.5829336 | P172: 1 | Q172: 538.7703121 | S172: 1 | T172: 691.9066655 | V172: 1 | W172: 1726.704891 | Y172: 1 | Z172: 756.8936583
M173: =H32 -> 0.51 | N173: =N161 -> 528.6417325 | P173: =H33 -> 0.61 | Q173: =Q161 -> 528.6417325 | S173: =H34 -> 0.8 | T173: =T161 -> 528.6417325 | V173: =H36 -> 0.35 | W173: =W161 -> 528.6417325 | Y173: =H38 -> 0.31 | Z173: =Z161 -> 528.6417325
J176: Destination at discharge:
J178: NHS ward | N178: NHS care home | R178: LA care home | V178: Non-NHS care home | Z178: Deaths
K179: =NetBenefit -> 528.6417325 | O179: =NetBenefit -> 528.6417325 | S179: =NetBenefit -> 528.6417325 | W179: =NetBenefit -> 528.6417325 | AA179: =NetBenefit -> 528.6417325
J180: 0 | K180: 506.2821275 | N180: 0 | O180: 498.162322 | R180: 0 | S180: 519.3086333 | V180: 0 | W180: 525.2553178 | Z180: 0 | AA180: 413.2916231
J181: 0.01 | K181: 510.2117593 | N181: 0.0025 | O181: 503.3813992 | R181: 0.0025 | S181: 523.4751954 | V181: 0.0025 | W181: 525.7980125 | Z181: 0.01 | AA181: 461.5552672
J182: 0.02 | K182: 514.1413911 | N182: 0.005 | O182: 508.6004763 | R182: 0.005 | S182: 527.6417576 | V182: 0.005 | W182: 526.3407072 | Z182: 0.02 | AA182: 509.8189113
J183: 0.03 | K183: 518.0710229 | N183: 0.0075 | O183: 513.8195534 | R183: 0.0075 | S183: 531.8083198 | V183: 0.0075 | W183: 526.8834018 | Z183: 0.03 | AA183: 558.0825554
J184: 0.04 | K184: 522.0006547 | N184: 0.01 | O184: 519.0386306 | R184: 0.01 | S184: 535.9748819 | V184: 0.01 | W184: 527.4260965 | Z184: 0.04 | AA184: 606.3461995
J185: 0.05 | K185: 525.9302866 | N185: 0.0125 | O185: 524.2577077 | R185: 0.0125 | S185: 540.1414441 | V185: 0.0125 | W185: 527.9687911 | Z185: 0.05 | AA185: 654.6098436
J186: 0.06 | K186: 529.8599184 | N186: 0.015 | O186: 529.4767849 | R186: 0.015 | S186: 544.3080063 | V186: 0.015 | W186: 528.5114858 | Z186: 0.06 | AA186: 702.8734877
J187: 0.07 | K187: 533.7895502 | N187: 0.0175 | O187: 534.695862 | R187: 0.0175 | S187: 548.4745684 | V187: 0.0175 | W187: 529.0541805 | Z187: 0.07 | AA187: 751.1371318
J188: 0.08 | K188: 537.719182 | N188: 0.02 | O188: 539.9149391 | R188: 0.02 | S188: 552.6411306 | V188: 0.02 | W188: 529.5968751 | Z188: 0.08 | AA188: 799.4007759
J189: 0.09 | K189: 541.6488138 | N189: 0.0225 | O189: 545.1340163 | R189: 0.0225 | S189: 556.8076928 | V189: 0.0225 | W189: 530.1395698 | Z189: 0.09 | AA189: 847.66442
J190: 0.1 | K190: 545.5784456 | N190: 0.025 | O190: 550.3530934 | R190: 0.025 | S190: 560.974255 | V190: 0.025 | W190: 530.6822644 | Z190: 0.1 | AA190: 895.9280641
J191: =GenWard -> 0.0569 | K191: =NetBenefit -> 528.6417325 | N191: 0.0275 | O191: 555.5721706 | R191: 0.0275 | S191: 565.1408171 | V191: 0.0275 | W191: 531.2249591 | Z191: =Death -> 0.0239 | AA191: =NetBenefit -> 528.6417325
N192: 0.03 | O192: 560.7912477 | R192: 0.03 | S192: 569.3073793 | V192: 0.03 | W192: 531.7676537
N193: 0.0325 | O193: 566.0103248 | R193: 0.0325 | S193: 573.4739415 | V193: 0.0325 | W193: 532.3103484
N194: 0.035 | O194: 571.229402 | R194: 0.035 | S194: 577.6405036 | V194: 0.035 | W194: 532.8530431
N195: =Move1 -> 0.0146 | O195: =NetBenefit -> 528.6417325 | R195: =Move2 -> 0.0056 | S195: =NetBenefit -> 528.6417325 | V195: =Move3 -> 0.0156 | W195: =NetBenefit -> 528.6417325

Sheet 2f) Quality of life
G13: Parameter | H13: Value
G14: Utility of general population aged ≥75 | H14: 0.73
G15: Utility with a hip fracture | H15: 0.582
G16: Utility with a non-hip fracture | H16: 0.699
G17: Utility decrement following care home admission | H17: 0.06
G18: Utility decrement following a fall due to fear of a future fall | H18: 0.045
G20: Value of a QALY | H20: 60000
AF67: Live
AG68: Intervention | AH68: Baseline rate of falls | AI68: Incidence rate ratio
AH69: Mean | AI69: Mean | AJ69: 95% CI
AF70: 1 | AG70: Otago | AH70: =IF(O70="",H70,O70) -> 0 | AI70: =IF(P70="",I70,P70) -> 0 | AJ70: 0
AF71: 2 | AG71: FaME | AH71: =IF(O71="",H71,O71) -> 0 | AI71: 0 | AJ71: 0
AF72: 3 | AG72: Tai Chi | AH72: 0 | AI72: 0 | AJ72: 0
AF73: 4 | AG73: HAM | AH73: 0 | AI73: 0 | AJ73: 0
G89: Utility of general population aged ≥75 | J89: Utility with a hip fracture | N89: Utility with a non-hip fracture | R89: Utility decrement following care home admission | V89: Utility decrement following a fall due to fear of a future fall
H90: ='3a) Results summary'!J54 -> 528.6417325 | K90: ='3a) Results summary'!J54 -> 528.6417325 | O90: ='3a) Results summary'!J54 -> 528.6417325 | S90: ='3a) Results summary'!J54 -> 528.6417325 | W90: ='3a) Results summary'!J54 -> 528.6417325
G91: 0.2 | H91: -542.2580283 | J91: 0.1 | K91: 806.6569125 | N91: 0.1 | O91: 1297.65829 | R91: 0 | S91: 518.7678456 | V91: 0 | W91: 229.6120773
G92: 0.4 | H92: -138.144911 | J92: 0.2 | K92: 748.9774146 | N92: 0.2 | O92: 1169.274892 | R92: 0.02 | S92: 522.0591412 | V92: 0.02 | W92: 362.5141463
G93: 0.6 | H93: 265.9682063 | J93: 0.3 | K93: 691.2979167 | N93: 0.3 | O93: 1040.891493 | R93: 0.04 | S93: 525.3504369 | V93: 0.04 | W93: 495.4162153
G94: 0.8 | H94: 670.0813236 | J94: 0.4 | K94: 633.6184188 | N94: 0.4 | O94: 912.5080944 | R94: 0.06 | S94: 528.6417325 | V94: 0.06 | W94: 628.3182842
G95: 1 | H95: 1074.194441 | J95: 0.5 | K95: 575.9389208 | N95: 0.5 | O95: 784.1246958 | R95: 0.08 | S95: 531.9330282 | V95: 0.08 | W95: 761.2203532
G96: =H14 -> 0.73 | H96: =H90 -> 528.6417325 | J96: 0.6 | K96: 518.2594229 | N96: 0.6 | O96: 655.7412972 | R96: 0.1 | S96: 535.2243238 | V96: 0.1 | W96: 894.1224222
J97: 0.7 | K97: 460.579925 | N97: 0.7 | O97: 527.3578985 | R97: 0.12 | S97: 538.5156195 | V97: 0.12 | W97: 1027.024491
J98: 0.8 | K98: 402.900427 | N98: 0.8 | O98: 398.9744999 | R98: 0.14 | S98: 541.8069151 | V98: 0.14 | W98: 1159.92656
J99: 0.9 | K99: 345.2209291 | N99: 0.9 | O99: 270.5911013 | R99: 0.16 | S99: 545.0982108 | V99: 0.16 | W99: 1292.828629
J100: 1 | K100: 287.5414312 | N100: 1 | O100: 142.2077027 | R100: 0.18 | S100: 548.3895064 | V100: 0.18 | W100: 1425.730698
J101: =H15 -> 0.582 | K101: =K90 -> 528.6417325 | N101: =H16 -> 0.699 | O101: =O90 -> 528.6417325 | R101: 0.2 | S101: 551.6808021 | V101: 0.2 | W101: 1558.632767
R102: 0.22 | S102: 554.9720977 | V102: 0.22 | W102: 1691.534836
R103: 0.24 | S103: 558.2633934 | V103: 0.24 | W103: 1824.436905
R104: 0.26 | S104: 561.554689 | V104: 0.26 | W104: 1957.338974
R105: 0.28 | S105: 564.8459847 | V105: 0.28 | W105: 2090.241043
R106: 0.3 | S106: 568.1372803 | V106: 0.3 | W106: 2223.143112
R107: =H17 -> 0.06 | S107: =S90 -> 528.6417325 | V107: =H18 -> 0.045 | W107: =W90 -> 528.6417325

Sheet Calculations (hidden)
B2: Select intervention for analysis:
B4: Total number of events: | C4: Control | E4: ='2c) Intervention costs'!$H$13 -> Otago strength and balance exercise | H4: Care home patients only:
C5: Year 1 | D5: Year 2 | E5: Year 1 | F5: Year 2 | I5: Control | M5: Treatment
B6: Total falls | C6: =TotalPop*BaselineFall -> 1059.72016 | D6: =TotalPop*BaselineFall -> 1059.72016 | E6: =(TotalPop*BaselineFall)*IncRateRatio -> 688.818104 | F6: =IF(IntChoice=2,(TotalPop*BaselineFall)*FameYear2,(TotalPop*BaselineFall)*(IncRateRatio+((1-IncRateRatio)*Year2Eff))) -> 874.269132 | I6: Year 1 | J6: Year 2 | K6: Year 3 | L6: Year 4 | M6: Year 1 | N6: Year 2 | O6: Year 3 | P6: Year 4
B7: Serious falls | C7: =C6*SeriousFalls -> 211.944032 | D7: =D6*SeriousFalls -> 211.944032 | E7: =E6*SeriousFalls -> 137.7636208 | F7: =F6*SeriousFalls -> 174.8538264 | H7: NHS care home | I7: =C16 -> 0.8664272028 | J7: =C16+D16 -> 1.732854406 | K7: =(C16/2)+D16 -> 1.299640804 | L7: =D16/2 -> 0.4332136014 | M7: =E16 -> 0.5631776818 | N7: =E16+F16 -> 1.277980124 | O7: =(E16/2)+F16 -> 0.9963912832 | P7: =F16/2 -> 0.3574012212
B8: Serious falls - GP visit | C8: =C7*FallsGP -> 108.0914563 | D8: =D7*FallsGP -> 108.0914563 | E8: =E7*FallsGP -> 70.25944661 | F8: =F7*FallsGP -> 89.17545146 | H8: LA care home | I8: =C17 -> 0.3323282422 | J8: =C17+D17 -> 0.6646564844 | K8: =(C17/2)+D17 -> 0.4984923633 | L8: =D17/2 -> 0.1661641211 | M8: =E17 -> 0.2160133574 | N8: =E17+F17 -> 0.4901841572 | O8: =(E17/2)+F17 -> 0.3821774785 | P8: =F17/2 -> 0.1370853999
B9: Serious falls - ambulance call-out | C9: =C7*FallsAmb -> 129.2858595 | D9: =D7*FallsAmb -> 129.2858595 | E9: =E7*FallsAmb -> 84.03580869 | F9: =F7*FallsAmb -> 106.6608341 | H9: Non-NHS care home | I9: =C18 -> 0.9257715318 | J9: =C18+D18 -> 1.851543064 | K9: =(C18/2)+D18 -> 1.388657298 | L9: =D18/2 -> 0.4628857659 | M9: =E18 -> 0.6017514957 | N9: =E18+F18 -> 1.365513009 | O9: =(E18/2)+F18 -> 1.064637262 | P9: =F18/2 -> 0.3818807569
B10: Serious falls - A&E visit | C10: =C7*FallsAE -> 169.5552256 | D10: =D7*FallsAE -> 169.5552256 | E10: =E7*FallsAE -> 110.2108966 | F10: =F7*FallsAE -> 139.8830611 | H10: Total | I10: =I7+I8+I9 -> 2.124526977 | J10: =J7+J8+J9 -> 4.249053954 | K10: =K7+K8+K9 -> 3.186790465 | L10: 1.062263488 | M10: 1.380942535 | N10: 3.133677291 | O10: 2.443206023 | P10: 0.8763673779
B11: A&E attendences w. admission | C11: =C10*AdmAE -> 59.34432896 | D11: =D10*AdmAE -> 59.34432896 | E11: =E10*AdmAE -> 38.57381382 | F11: =F10*AdmAE -> 48.95907139
B12: Admission due to non-hip fracture | C12: =C11*(1-HipAdm) -> 40.94758698 | D12: =D11*(1-HipAdm) -> 40.94758698 | E12: =E11*(1-HipAdm) -> 26.61593154 | F12: =F11*(1-HipAdm) -> 33.78175926
B13: Admissions due to hip fractures | C13: =C11*HipAdm -> 18.39674198 | D13: =D11*HipAdm -> 18.39674198 | E13: =E11*HipAdm -> 11.95788229 | F13: =F11*HipAdm -> 15.17731213
B14: Return home after inpatient stay | C14: =C11*'2e) Intervention effectiveness'!$H$45 -> 52.4247802 | D14: =D11*'2e) Intervention effectiveness'!$H$45 -> 52.4247802 | E14: =E11*'2e) Intervention effectiveness'!$H$45 -> 34.07610713 | F14: =F11*'2e) Intervention effectiveness'!$H$45 -> 43.25044367 | H14: =IntChoice -> 1
B15: =+'2e) Intervention effectiveness'!G47 -> NHS care home | C15: =C11*GenWard -> 3.376692318 | D15: =D11*GenWard -> 3.376692318 | E15: =E11*GenWard -> 2.194850007 | F15: =F11*GenWard -> 2.785771162
B16: Move to new NHS care home | C16: =C11*Move1 -> 0.8664272028 | D16: =D11*Move1 -> 0.8664272028 | E16: =E11*Move1 -> 0.5631776818 | F16: =F11*Move1 -> 0.7148024423
B17: Move to new LA care home | C17: =C11*Move2 -> 0.3323282422 | D17: =D11*Move2 -> 0.3323282422 | E17: =E11*Move2 -> 0.2160133574 | F17: =F11*Move2 -> 0.2741707998
B18: Move to new non-NHS care home | C18: =C11*Move3 -> 0.9257715318 | D18: =D11*Move3 -> 0.9257715318 | E18: =E11*Move3 -> 0.6017514957 | F18: =F11*Move3 -> 0.7637615137
B19: Death | C19: =C11*Death -> 1.418329462 | D19: =D11*Death -> 1.418329462 | E19: =E11*Death -> 0.9219141504 | F19: =F11*Death -> 1.170121806
B22: Total costs: | C22: Control | G22: ='2c) Intervention costs'!$H$13 -> Otago strength and balance exercise | M22: Total costs - DISCOUNTED: | N22: Control | R22: ='2c) Intervention costs'!$H$13 -> Otago strength and balance exercise
C23: Year 1 | D23: Year 2 | E23: Year 3 | F23: Year 4 | G23: Year 1 | H23: Year 2 | I23: Year 3 | J23: Year 4 | N23: 0 | O23: 1 | P23: 2 | Q23: 3 | R23: 0 | S23: 1 | T23: 2 | U23: 3
B24: Intervention costs | C24: 0 | D24: 0 | E24: 0 | F24: 0 | G24: =VLOOKUP(IntChoice,'2c) Intervention costs'!$AK$68:$AQ$71,7) -> 441193.7196 | H24: 0 | I24: 0 | J24: 0 | M24: Intervention costs | N24: =C24/(1+'2a) Interventions'!$H$29)^$N$23 -> 0 | O24: =D24/(1+'2a) Interventions'!$H$29)^$P$23 -> 0 | P24: =E24/(1+'2a) Interventions'!$H$29)^$P$23 -> 0 | Q24: =F24/(1+'2a) Interventions'!$H$29)^$P$23 -> 0 | R24: =G24/(1+'2a) Interventions'!$H$29)^$R$23 -> 441193.7196 | S24: =H24/(1+'2a) Interventions'!$H$29)^$S$23 -> 0 | T24: =I24/(1+'2a) Interventions'!$H$29)^$T$23 -> 0 | U24: =J24/(1+'2a) Interventions'!$H$29)^$U$23 -> 0
B25: GP visit | C25: =C8*'2d) Other resources'!$I$16 -> 3891.292428 | D25: =D8*'2d) Other resources'!$I$16 -> 3891.292428 | E25: 0 | F25: 0 | G25: =E8*'2d) Other resources'!$I$16 -> 2529.340078 | H25: =F8*'2d) Other resources'!$I$16 -> 3210.316253 | I25: 0 | J25: 0 | M25: GP visit | N25: =C25/(1+'2a) Interventions'!$H$29)^$N$23 -> 3891.292428 | O25: =D25/(1+'2a) Interventions'!$H$29)^$O$23 -> 3759.702829 | P25: =E25/(1+'2a) Interventions'!$H$29)^$P$23 -> 0 | Q25: =F25/(1+'2a) Interventions'!$H$29)^$P$23 -> 0 | R25: =G25/(1+'2a) Interventions'!$H$29)^$R$23 -> 2529.340078 | S25: =H25/(1+'2a) Interventions'!$H$29)^$S$23 -> 3101.754834 | T25: =I25/(1+'2a) Interventions'!$H$29)^$T$23 -> 0 | U25: =J25/(1+'2a) Interventions'!$H$29)^$U$23 -> 0
B26: Ambulance call-out | C26: =C9*'2d) Other resources'!$I$19 -> 30511.46285 | D26: =D9*'2d) Other resources'!$I$19 -> 30511.46285 | E26: 0 | F26: 0 | G26: =E9*'2d) Other resources'!$I$19 -> 19832.45085 | H26: =F9*'2d) Other resources'!$I$19 -> 25171.95685 | I26: 0 | J26: 0 | M26: Ambulance call-out | N26: =C26/(1+'2a) Interventions'!$H$29)^$N$23 -> 30511.46285 | O26: =D26/(1+'2a) Interventions'!$H$29)^$O$23 -> 29479.67425 | P26: =E26/(1+'2a) Interventions'!$H$29)^$P$23 -> 0 | Q26: =F26/(1+'2a) Interventions'!$H$29)^$P$23 -> 0 | R26: =G26/(1+'2a) Interventions'!$H$29)^$R$23 -> 19832.45085 | S26: =H26/(1+'2a) Interventions'!$H$29)^$S$23 -> 24320.73125 | T26: =I26/(1+'2a) Interventions'!$H$29)^$T$23 -> 0 | U26: =J26/(1+'2a) Interventions'!$H$29)^$U$23 -> 0
B27: A&E visit - no admission | C27: =(C10-C11)*'2d) Other resources'!$I$18 -> 9950.941858 | D27: =(D10-D11)*'2d) Other resources'!$I$18 -> 9950.941858 | E27: 0 | F27: 0 | G27: =(E10-E11)*'2d) Other resources'!$I$18 -> 6468.112207 | H27: =(F10-F11)*'2d) Other resources'!$I$18 -> 8209.527033 | I27: 0 | J27: 0 | M27: A&E visit - no admission | N27: =C27/(1+'2a) Interventions'!$H$29)^$N$23 -> 9950.941858 | O27: =D27/(1+'2a) Interventions'!$H$29)^$O$23 -> 9614.436577 | P27: =E27/(1+'2a) Interventions'!$H$29)^$P$23 -> 0 | Q27: =F27/(1+'2a) Interventions'!$H$29)^$P$23 -> 0 | R27: =G27/(1+'2a) Interventions'!$H$29)^$R$23 -> 6468.112207 | S27: =H27/(1+'2a) Interventions'!$H$29)^$S$23 -> 7931.910176 | T27: =I27/(1+'2a) Interventions'!$H$29)^$T$23 -> 0 | U27: =J27/(1+'2a) Interventions'!$H$29)^$U$23 -> 0
B28: A&E visit - admission | C28: =C11*'2d) Other resources'!$I$17 -> 5965.88539 | D28: =D11*'2d) Other resources'!$I$17 -> 5965.88539 | E28: 0 | F28: 0 | G28: =E11*'2d) Other resources'!$I$17 -> 3877.825504 | H28: =F11*'2d) Other resources'!$I$17 -> 4921.855447 | I28: 0 | J28: 0 | M28: A&E visit - admission | N28: =C28/(1+'2a) Interventions'!$H$29)^$N$23 -> 5965.88539 | O28: =D28/(1+'2a) Interventions'!$H$29)^$O$23 -> 5764.140474 | P28: =E28/(1+'2a) Interventions'!$H$29)^$P$23 -> 0 | Q28: =F28/(1+'2a) Interventions'!$H$29)^$P$23 -> 0 | R28: =G28/(1+'2a) Interventions'!$H$29)^$R$23 -> 3877.825504 | S28: =H28/(1+'2a) Interventions'!$H$29)^$S$23 -> 4755.415891 | T28: =I28/(1+'2a) Interventions'!$H$29)^$T$23 -> 0 | U28: =J28/(1+'2a) Interventions'!$H$29)^$U$23 -> 0
B29: Hospital inpatient (non-hip) | C29: =C12*'2d) Other resources'!$I$20 -> 325492.3689 | D29: =D12*'2d) Other resources'!$I$20 -> 325492.3689 | E29: 0 | F29: 0 | G29: =E12*'2d) Other resources'!$I$20 -> 211570.0398 | H29: =F12*'2d) Other resources'!$I$20 -> 268531.2044 | I29: 0 | J29: 0 | M29: Hospital inpatient (non-hip) | N29: =C29/(1+'2a) Interventions'!$H$29)^$N$23 -> 325492.3689 | O29: =D29/(1+'2a) Interventions'!$H$29)^$O$23 -> 314485.3806 | P29: =E29/(1+'2a) Interventions'!$H$29)^$P$23 -> 0 | Q29: =F29/(1+'2a) Interventions'!$H$29)^$P$23 -> 0 | R29: =G29/(1+'2a) Interventions'!$H$29)^$R$23 -> 211570.0398 | S29: =H29/(1+'2a) Interventions'!$H$29)^$S$23 -> 259450.439 | T29: =I29/(1+'2a) Interventions'!$H$29)^$T$23 -> 0 | U29: =J29/(1+'2a) Interventions'!$H$29)^$U$23 -> 0
B30: Hospital inpatient (hip) - 1st year | C30: =C13*('2d) Other resources'!$I$21+'2d) Other resources'!$I$22) -> 174453.1767 | D30: =D13*('2d) Other resources'!$I$21+'2d) Other resources'!$I$22) -> 174453.1767 | E30: 0 | F30: 0 | G30: =E13*('2d) Other resources'!$I$21+'2d) Other resources'!$I$22) -> 113394.5649 | H30: =F13*('2d) Other resources'!$I$21+'2d) Other resources'!$I$22) -> 143923.8708 | I30: 0 | J30: 0 | M30: Hospital inpatient (hip) - 1st year | N30: =C30/(1+'2a) Interventions'!$H$29)^$N$23 -> 174453.1767 | O30: =D30/(1+'2a) Interventions'!$H$29)^$O$23 -> 168553.7939 | P30: =E30/(1+'2a) Interventions'!$H$29)^$P$23 -> 0 | Q30: =F30/(1+'2a) Interventions'!$H$29)^$P$23 -> 0 | R30: =G30/(1+'2a) Interventions'!$H$29)^$R$23 -> 113394.5649 | S30: =H30/(1+'2a) Interventions'!$H$29)^$S$23 -> 139056.88 | T30: =I30/(1+'2a) Interventions'!$H$29)^$T$23 -> 0 | U30: =J30/(1+'2a) Interventions'!$H$29)^$U$23 -> 0
B31: Hospital inpatient (hip) - 2nd year | C31: 0 | D31: =C13*('2d) Other resources'!$I$23) -> 40688.62613 | E31: =D13*('2d) Other resources'!$I$23) -> 40688.62613 | F31: 0 | G31: 0 | H31: =E13*('2d) Other resources'!$I$23) -> 26447.60699 | I31: =F13*('2d) Other resources'!$I$23) -> 33568.11656 | J31: 0 | M31: Hospital inpatient (hip) - 2nd year | N31: =C31/(1+'2a) Interventions'!$H$29)^$N$23 -> 0 | O31: =D31/(1+'2a) Interventions'!$H$29)^$O$23 -> 39312.68226 | P31: =E31/(1+'2a) Interventions'!$H$29)^$P$23 -> 37983.26788 | Q31: =F31/(1+'2a) Interventions'!$H$29)^$P$23 -> 0 | R31: =G31/(1+'2a) Interventions'!$H$29)^$R$23 -> 0 | S31: =H31/(1+'2a) Interventions'!$H$29)^$S$23 -> 25553.24347 | T31: =I31/(1+'2a) Interventions'!$H$29)^$T$23 -> 31336.196 | U31: =J31/(1+'2a) Interventions'!$H$29)^$U$23 -> 0
B32: =+'2d) Other resources'!G24 -> Geriatric long-stay | C32: =C15*'2d) Other resources'!$I$24 -> 49499.87816 | D32: =D15*'2d) Other resources'!$I$24 -> 49499.87816 | E32: 0 | F32: 0 | G32: =E15*'2d) Other resources'!$I$24 -> 32174.9208 | H32: =F15*'2d) Other resources'!$I$24 -> 40837.39948 | I32: 0 | J32: 0 | M32: General NHS ward | N32: =C32/(1+'2a) Interventions'!$H$29)^$N$23 -> 49499.87816 | O32: =D32/(1+'2a) Interventions'!$H$29)^$O$23 -> 47825.96924 | P32: =E32/(1+'2a) Interventions'!$H$29)^$P$23 -> 0 | Q32: =F32/(1+'2a) Interventions'!$H$29)^$P$23 -> 0 | R32: =G32/(1+'2a) Interventions'!$H$29)^$R$23 -> 32174.9208 | S32: =H32/(1+'2a) Interventions'!$H$29)^$S$23 -> 39456.42462 | T32: =I32/(1+'2a) Interventions'!$H$29)^$T$23 -> 0 | U32: =J32/(1+'2a) Interventions'!$H$29)^$U$23 -> 0
B33: Cost of death | C33: =C19*'2d) Other resources'!$I$25 -> 0 | D33: =D19*'2d) Other resources'!$I$25 -> 0 | E33: 0 | F33: 0 | G33: =E19*'2d) Other resources'!$I$25 -> 0 | H33: =F19*'2d) Other resources'!$I$25 -> 0 | I33: 0 | J33: 0 | M33: Cost of death | N33: =C33/(1+'2a) Interventions'!$H$29)^$N$23 -> 0 | O33: =D33/(1+'2a) Interventions'!$H$29)^$O$23 -> 0 | P33: =E33/(1+'2a) Interventions'!$H$29)^$P$23 -> 0 | Q33: =F33/(1+'2a) Interventions'!$H$29)^$Q$23 -> 0 | R33: =G33/(1+'2a) Interventions'!$H$29)^$R$23 -> 0 | S33: =H33/(1+'2a) Interventions'!$H$29)^$S$23 -> 0 | T33: =I33/(1+'2a) Interventions'!$H$29)^$T$23 -> 0 | U33: =J33/(1+'2a) Interventions'!$H$29)^$U$23 -> 0
B34: Social care | C34: =((I7*SocialCost1+I8*SocialCost2+I9*SocialCost3)*52)+C14*'2d) Other resources'!$K$38 -> 127966.8613 | D34: =((J7*SocialCost1+J8*SocialCost2+J9*SocialCost3)*52)+D14*'2d) Other resources'!$K$38 -> 156012.0915 | E34: =(K7*SocialCost1+K8*SocialCost2+K9*SocialCost3)*52 -> 42067.84531 | F34: =(L7*SocialCost1+L8*SocialCost2+L9*SocialCost3)*52 -> 14022.6151 | G34: =((M7*SocialCost1+M8*SocialCost2+M9*SocialCost3)*52)+E14*'2d) Other resources'!$K$38 -> 83178.45983 | H34: =((N7*SocialCost1+N8*SocialCost2+N9*SocialCost3)*52)+F14*'2d) Other resources'!$K$38 -> 123802.0602 | I34: 32252.01474 | J34: 11568.65746 | M34: Social care | N34: =C34/(1+'2a) Interventions'!$H$29)^$N$23 -> 127966.8613 | O34: =D34/(1+'2a) Interventions'!$H$29)^$O$23 -> 150736.3203 | P34: =E34/(1+'2a) Interventions'!$H$29)^$P$23 -> 39270.78374 | Q34: =F34/(1+'2a) Interventions'!$H$29)^$Q$23 -> 12647.59541 | R34: =G34/(1+'2a) Interventions'!$H$29)^$R$23 -> 83178.45983 | S34: =H34/(1+'2a) Interventions'!$H$29)^$S$23 -> 119615.5171 | T34: =I34/(1+'2a) Interventions'!$H$29)^$T$23 -> 30107.60087 | U34: =J34/(1+'2a) Interventions'!$H$29)^$U$23 -> 10434.26621
B35: Total | C35: =SUM(C24:C34) -> 727731.8676 | D35: 796465.7239 | E35: 82756.47144 | F35: 14022.6151 | G35: =SUM(G24:G34) -> 914219.4336 | H35: 645055.7974 | I35: 65820.1313 | J35: 11568.65746 | M35: Total | N35: =SUM(N24:N34) -> 727731.8676 | O35: 769532.1004 | P35: 77254.05162 | Q35: 12647.59541 | R35: 914219.4336 | S35: 623242.3163 | T35: 61443.79687 | U35: 10434.26621
B36: Cumulative total | C36: =C35 -> 727731.8676 | D36: =C36+D35 -> 1524197.592 | E36: =D36+E35 -> 1606954.063 | F36: =E36+F35 -> 1620976.678 | G36: =G35 -> 914219.4336 | H36: =G36+H35 -> 1559275.231 | I36: =H36+I35 -> 1625095.362 | J36: =I36+J35 -> 1636664.02 | M36: Cumulative total | N36: =N35 -> 727731.8676 | O36: =N36+O35 -> 1497263.968 | P36: =O36+P35 -> 1574518.02 | Q36: =P36+Q35 -> 1587165.615 | R36: =R35 -> 914219.4336 | S36: =R36+S35 -> 1537461.75 | T36: =S36+T35 -> 1598905.547 | U36: =T36+U35 -> 1609339.813
B37: Cumulative total (per person) | C37: =C36/TotalPop -> 727.9240396 | D37: 1524.600086 | E37: 1607.378411 | F37: 1621.404729 | G37: 914.4608512 | H37: 1559.686988 | I37: 1625.524501 | J37: 1637.096213 | M37: Cumulative total (per person) | N37: =N36/TotalPop -> 727.9240396 | O37: 1497.65935 | P37: 1574.933802 | Q37: 1587.584737 | R37: 914.4608512 | S37: 1537.867747 | T37: 1599.327769 | U37: 1609.764791
B39: (Social care - NHS costs) | C39: =((I7*(NurseCost1*(1-SelfFund1))+I8*(NurseCost2*(1-SelfFund2))+I9*(NurseCost3*(1-SelfFund3)))*52) -> 5091.126244 | D39: 10182.25249 | E39: 7636.689366 | F39: 2545.563122 | G39: 3309.232058 | H39: 7509.41121 | I39: 5854.79518 | J39: 2100.089576 | M39: (Social care - NHS costs) | N39: =C39/(1+'2a) Interventions'!$H$29)^$N$23 -> 5091.126244 | O39: =D39/(1+'2a) Interventions'!$H$29)^$O$23 -> 9837.925109 | P39: =E39/(1+'2a) Interventions'!$H$29)^$P$23 -> 7128.931238 | Q39: =F39/(1+'2a) Interventions'!$H$29)^$Q$23 -> 2295.95209 | R39: =G39/(1+'2a) Interventions'!$H$29)^$R$23 -> 3309.232058 | S39: =H39/(1+'2a) Interventions'!$H$29)^$S$23 -> 7255.469768 | T39: =I39/(1+'2a) Interventions'!$H$29)^$T$23 -> 5465.513949 | U39: =J39/(1+'2a) Interventions'!$H$29)^$U$23 -> 1894.160474
B40: (Social care - LA costs) | C40: =C34-C39 -> 122875.735 | D40: =D34-D39 -> 145829.839 | E40: 34431.15594 | F40: 11477.05198 | G40: 79869.22777 | H40: 116292.649 | I40: 26397.21956 | J40: 9468.567885 | M40: (Social care - LA costs) | N40: =C40/(1+'2a) Interventions'!$H$29)^$N$23 -> 122875.735 | O40: =D40/(1+'2a) Interventions'!$H$29)^$O$23 -> 140898.3952 | P40: =E40/(1+'2a) Interventions'!$H$29)^$P$23 -> 32141.8525 | Q40: =F40/(1+'2a) Interventions'!$H$29)^$Q$23 -> 10351.64332 | R40: =G40/(1+'2a) Interventions'!$H$29)^$R$23 -> 79869.22777 | S40: =H40/(1+'2a) Interventions'!$H$29)^$S$23 -> 112360.0473 | T40: =I40/(1+'2a) Interventions'!$H$29)^$T$23 -> 24642.08692 | U40: =J40/(1+'2a) Interventions'!$H$29)^$U$23 -> 8540.105737
B43: Total QALYs: | C43: Control | G43: ='2c) Intervention costs'!$H$13 -> Otago strength and balance exercise | M43: Total QALYs - DISCOUNTED: | N43: Control | R43: ='2c) Intervention costs'!$H$13 -> Otago strength and balance exercise
C44: Year 1 | D44: Year 2 | E44: Year 3 | F44: Year 4 | G44: Year 1 | H44: Year 2 | I44: Year 3 | J44: Year 4 | N44: 0 | O44: 1 | P44: 2 | Q44: 3 | R44: 0 | S44: 1 | T44: 2 | U44: 3
B45: General population | C45: =(TotalPop-C11)*UtilityGen -> 686.4859199 | D45: =(TotalPop-D11)*UtilityGen -> 686.4859199 | E45: =TotalPop*UtilityGen -> 729.80728 | F45: =TotalPop*UtilityGen -> 729.80728 | G45: =(TotalPop-E11)*UtilityGen -> 701.6483959 | H45: =(TotalPop-F11)*UtilityGen -> 694.0671579 | I45: =TotalPop*UtilityGen -> 729.80728 | J45: =TotalPop*UtilityGen -> 729.80728 | M45: General population | N45: =C45/(1+'2a) Interventions'!$H$30)^$N$44 -> 686.4859199 | O45: =D45/(1+'2a) Interventions'!$H$30)^$O$44 -> 676.3408077 | P45: =E45/(1+'2a) Interventions'!$H$30)^$P$44 -> 708.3960106 | Q45: =F45/(1+'2a) Interventions'!$H$30)^$Q$44 -> 697.927104 | R45: =G45/(1+'2a) Interventions'!$H$30)^$R$44 -> 701.6483959 | S45: =H45/(1+'2a) Interventions'!$H$30)^$S$44 -> 683.8100078 | T45: =I45/(1+'2a) Interventions'!$H$30)^$T$44 -> 708.3960106 | U45: =J45/(1+'2a) Interventions'!$H$30)^$U$44 -> 697.927104
B46: Non-hip fracture | C46: =C12*UtilityNonHip -> 28.6223633 | D46: =D12*UtilityNonHip -> 28.6223633 | E46: 0 | F46: 0 | G46: =E12*UtilityNonHip -> 18.60453615 | H46: =F12*UtilityNonHip -> 23.61344972 | I46: 0 | J46: 0 | M46: Non-hip fracture | N46: =C46/(1+'2a) Interventions'!$H$30)^$N$44 -> 28.6223633 | O46: =D46/(1+'2a) Interventions'!$H$30)^$O$44 -> 28.19937271 | P46: =E46/(1+'2a) Interventions'!$H$30)^$P$44 -> 0 | Q46: =F46/(1+'2a) Interventions'!$H$30)^$Q$44 -> 0 | R46: =G46/(1+'2a) Interventions'!$H$30)^$R$44 -> 18.60453615 | S46: =H46/(1+'2a) Interventions'!$H$30)^$S$44 -> 23.26448249 | T46: =I46/(1+'2a) Interventions'!$H$30)^$T$44 -> 0 | U46: =J46/(1+'2a) Interventions'!$H$30)^$U$44 -> 0
B47: Hip fracture | C47: =C13*UtilityHip -> 10.70690383 | D47: =D13*UtilityHip -> 10.70690383 | E47: 0 | F47: 0 | G47: =E13*UtilityHip -> 6.95948749 | H47: =F13*UtilityHip -> 8.833195661 | I47: 0 | J47: 0 | M47: Hip fracture | N47: =C47/(1+'2a) Interventions'!$H$30)^$N$44 -> 10.70690383 | O47: =D47/(1+'2a) Interventions'!$H$30)^$O$44 -> 10.54867373 | P47: =E47/(1+'2a) Interventions'!$H$30)^$P$44 -> 0 | Q47: =F47/(1+'2a) Interventions'!$H$30)^$Q$44 -> 0 | R47: =G47/(1+'2a) Interventions'!$H$30)^$R$44 -> 6.95948749 | S47: =H47/(1+'2a) Interventions'!$H$30)^$S$44 -> 8.702655823 | T47: =I47/(1+'2a) Interventions'!$H$30)^$T$44 -> 0 | U47: =J47/(1+'2a) Interventions'!$H$30)^$U$44 -> 0
B48: Care home admission | C48: =I10*-UtilityDecAdm -> -0.1274716186 | D48: -0.2549432372 | E48: -0.1912074279 | F48: -0.0637358093 | G48: -0.08285655209 | H48: -0.1880206374 | I48: -0.1465923614 | J48: -0.05258204268 | M48: Care home admission | N48: =C48/(1+'2a) Interventions'!$H$30)^$N$44 -> -0.1274716186 | O48: =D48/(1+'2a) Interventions'!$H$30)^$O$44 -> -0.2511756032 | P48: =E48/(1+'2a) Interventions'!$H$30)^$P$44 -> -0.1855977363 | Q48: =F48/(1+'2a) Interventions'!$H$30)^$Q$44 -> -0.06095163755 | R48: =G48/(1+'2a) Interventions'!$H$30)^$R$44 -> -0.08285655209 | S48: =H48/(1+'2a) Interventions'!$H$30)^$S$44 -> -0.1852420073 | T48: =I48/(1+'2a) Interventions'!$H$30)^$T$44 -> -0.1422915979 | U48: =J48/(1+'2a) Interventions'!$H$30)^$U$44 -> -0.05028510098
B49: Deaths | C49: =C19*-UtilityGen -> -1.035380507 | D49: =(D19*-UtilityGen)+C49 -> -2.070761015 | E49: =D49 -> -2.070761015 | F49: =D49 -> -2.070761015 | G49: =E19*-UtilityGen -> -0.6729973298 | H49: =(F19*-UtilityGen)+G49 -> -1.527186248 | I49: =H49 -> -1.527186248 | J49: =H49 -> -1.527186248 | M49: Deaths | N49: =C49/(1+'2a) Interventions'!$H$30)^$N$44 -> -1.035380507 | O49: =D49/(1+'2a) Interventions'!$H$30)^$O$44 -> -2.040158635 | P49: =E49/(1+'2a) Interventions'!$H$30)^$P$44 -> -2.010008508 | Q49: =F49/(1+'2a) Interventions'!$H$30)^$Q$44 -> -1.980303948 | R49: =G49/(1+'2a) Interventions'!$H$30)^$R$44 -> -0.6729973298 | S49: =H49/(1+'2a) Interventions'!$H$30)^$S$44 -> -1.504616993 | T49: =I49/(1+'2a) Interventions'!$H$30)^$T$44 -> -1.482381274 | U49: =J49/(1+'2a) Interventions'!$H$30)^$U$44 -> -1.460474162
B50: Fear of falling | C50: =C7*-UtilityDecFear -> -9.53748144 | D50: =D7*-UtilityDecFear -> -9.53748144 | E50: 0 | F50: 0 | G50: =E7*-UtilityDecFear -> -6.199362936 | H50: =F7*-UtilityDecFear -> -7.868422188 | I50: 0 | J50: 0 | M50: Fear of falling | N50: =C50/(1+'2a) Interventions'!$H$30)^$N$44 -> -9.53748144 | O50: =D50/(1+'2a) Interventions'!$H$30)^$O$44 -> -9.396533438 | P50: =E50/(1+'2a) Interventions'!$H$30)^$P$44 -> 0 | Q50: =F50/(1+'2a) Interventions'!$H$30)^$Q$44 -> 0 | R50: =G50/(1+'2a) Interventions'!$H$30)^$R$44 -> -6.199362936 | S50: =H50/(1+'2a) Interventions'!$H$30)^$S$44 -> -7.752140087 | T50: =I50/(1+'2a) Interventions'!$H$30)^$T$44 -> 0 | U50: =J50/(1+'2a) Interventions'!$H$30)^$U$44 -> 0
B51: Total | C51: =SUM(C45:C50) -> 715.1148534 | D51: =SUM(D45:D50) -> 713.9520013 | E51: =SUM(E45:E50) -> 727.5453116 | F51: =SUM(F45:F50) -> 727.6727832 | G51: =SUM(G45:G50) -> 720.2572027 | H51: =SUM(H45:H50) -> 716.9301742 | I51: =SUM(I45:I50) -> 728.1335014 | J51: =SUM(J45:J50) -> 728.2275117 | M51: Total | N51: =SUM(N45:N50) -> 715.1148534 | O51: =SUM(O45:O50) -> 703.4009865 | P51: =SUM(P45:P50) -> 706.2004043 | Q51: =SUM(Q45:Q50) -> 695.8858484 | R51: =SUM(R45:R50) -> 720.2572027 | S51: =SUM(S45:S50) -> 706.335147 | T51: =SUM(T45:T50) -> 706.7713377 | U51: =SUM(U45:U50) -> 696.4163448
B52: Total per person | C52: =C51/TotalPop -> 0.7153036936 | D52: 0.7141405344 | E52: 0.7277374342 | F52: 0.7278649395 | G52: 0.7204474008 | H52: 0.7171194937 | I52: 0.7283257794 | J52: 0.7284198145 | M52: Cumulative total | N52: =N51 -> 715.1148534 | O52: =N52+O51 -> 1418.51584 | P52: =O52+P51 -> 2124.716244 | Q52: 2820.602093 | R52: =R51 -> 720.2572027 | S52: =R52+S51 -> 1426.59235 | T52: =S52+T51 -> 2133.363687 | U52: =T52+U51 -> 2829.780032
B53: Cumulative total (per person) | C53: =C52 -> 0.7153036936 | D53: =C53+D52 -> 1.429444228 | E53: =D53+E52 -> 2.157181662 | F53: 2.885046602 | G53: =G52 -> 0.7204474008 | H53: =G53+H52 -> 1.437566895 | I53: =H53+I52 -> 2.165892674 | J53: =I53+J52 -> 2.894312489 | M53: Total per person | N53: =N51/TotalPop -> 0.7153036936 | O53: 0.7035867334 | P53: 0.7063868905 | Q53: 0.6960696108 | R53: 0.7204474008 | S53: 0.7065216687 | T53: 0.7069579746 | U53: 0.6966002472
M54: Cumulative total (per person) | N54: =N53 -> 0.7153036936 | O54: =N54+O53 -> 1.418890427 | P54: =O54+P53 -> 2.125277317 | Q54: =P54+Q53 -> 2.821346928 | R54: =R53 -> 0.7204474008 | S54: =R54+S53 -> 1.42696907 | T54: =S54+T53 -> 2.133927044 | U54: =T54+U53 -> 2.830527291

Sheet 3a) Results summary
G13: Select intervention for analysis:
G19: Impact on costs (by total population):
H20: ='2a) Interventions'!$H$79 -> Otago | I20: Usual care | J20: Difference
G21: Intervention costs | H21: =Calculations!R24 -> 441193.7196 | I21: 0 | J21: =H21-I21 -> 441193.7196
G22: Primary/secondary care costs | H22: =IF(H141=FALSE,0,SUM(Calculations!R25:U33)) -> 924810.2494 | I22: =IF(H141=FALSE,0,SUM(Calculations!N25:Q33)) -> 1256544.054 | J22: =H22-I22 -> -331733.805
G23: Social care costs | H23: =IF(H142=FALSE,0,SUM(Calculations!R34:U34)) -> 243335.844 | I23: =IF(H142=FALSE,0,SUM(Calculations!N34:Q34)) -> 330621.5607 | J23: =H23-I23 -> -87285.7167
G24: Total | H24: =H21+H22+H23 -> 1609339.813 | I24: =I21+I22+I23 -> 1587165.615 | J24: =H24-I24 -> 22174.19791
G26: Impact on costs (per person):
H27: ='2a) Interventions'!$H$79 -> Otago | I27: Usual care | J27: Difference
G28: Intervention costs | H28: =H21/TotalPop -> 441.3102255 | I28: 0 | J28: =H28-I28 -> 441.3102255
G29: Primary/secondary care costs | H29: 925.0544637 | I29: 1256.87587 | J29: =H29-I29 -> -331.8214059
G30: Social care costs | H30: 243.4001016 | I30: 330.7088678 | J30: =H30-I30 -> -87.30876621
G31: Total | H31: =H28+H29+H30 -> 1609.764791 | I31: =I28+I29+I30 -> 1587.584737 | J31: =H31-I31 -> 22.18005344
G33: =CONCATENATE("Financial benefits of ",'2a) Interventions'!$H$79) -> Financial benefits of Otago | H33: =-J29-J30 -> 419.1301721
G35: Financial ROI - Benefits to cost ratio | H35: =CONCATENATE("£",J135," : ","£1.00") -> £0.95 : £1.00
G38: Impact on quality of life:
H39: ='2a) Interventions'!$H$79 -> Otago | I39: Usual care | J39: Difference
G40: Total QALYs | H40: =Calculations!U52 -> 2829.780032 | I40: =Calculations!Q52 -> 2820.602093 | J40: =H40-I40 -> 9.177939483
G41: QALYs per person | H41: =Calculations!U54 -> 2.830527291 | I41: =Calculations!Q54 -> 2.821346928 | J41: =H41-I41 -> 0.009180363099
G42: Value of QALYs per person | H42: =H41*Threshold -> 169831.6375 | I42: =I41*Threshold -> 169280.8157 | J42: =H42-I42 -> 550.821786
G44: =CONCATENATE("Societal benefits of ",'2a) Interventions'!$H$79) -> Societal benefits of Otago | H44: =J42+H33 -> 969.951958
G46: Societal ROI - Benefits to cost ratio | H46: =CONCATENATE("£",J136," : ","£1.00") -> £2.20 : £1.00
G49: Cost-effectiveness of intervention:
H50: ='2a) Interventions'!$H$79 -> Otago | I50: Usual care | J50: Difference
G51: Total per person costs | H51: =H31 -> 1609.764791 | I51: =I31 -> 1587.584737 | J51: =H51-I51 -> 22.18005344
G52: Total per person QALYs | H52: =H41 -> 2.830527291 | I52: =I41 -> 2.821346928 | J52: =H52-I52 -> 0.009180363099
G53: Incremental cost-effectiveness ratio (ICER) | J53: =IF(J41<0,"Less effective",IF(J41=0,"Equal efficacy",IF(J31>0,J31/J41,"Dominant"))) -> 2416.032264
G54: Incremental net monetary benefit | J54: =(J52*'2f) Quality of life'!H20)-J51 -> 528.6417325
G135: Financial ROI - Percentage | H135: =(-(J22+J23)/J21) -> 0.9497404498 | I135: =H135 -> 0.9497404498 | J135: =FIXED(I135,2,TRUE) -> 0.95
G136: Societal ROI - Percentage | H136: =((J41*Threshold)-(J29+J30))/J28 -> 2.19789142 | I136: =H136 -> 2.19789142 | J136: =FIXED(I136,2,TRUE) -> 2.20
G141: Primary/secondary costs | H141: TRUE
G142: Social care costs | H142: TRUE

Sheet 3b) Detailed results
G10: Cost breakdown by falls-related event, total population:
G12: Event | H12: =CHOOSE(IntChoice,'2a) Interventions'!G90,'2a) Interventions'!G91,'2a) Interventions'!G92,'2a) Interventions'!G93) -> Otago | I12: Usual care | J12: Difference
G13: GP visit | H13: =SUM(Calculations!R25:U25) -> 5631.094911 | I13: =SUM(Calculations!N25:Q25) -> 7650.995256 | J13: =H13-I13 -> -2019.900345
G14: Ambulance call-out | H14: =SUM(Calculations!R26:U26) -> 44153.1821 | I14: =SUM(Calculations!N26:Q26) -> 59991.13709 | J14: =H14-I14 -> -15837.95499
G15: A&E visit - no admission | H15: =SUM(Calculations!R27:U27) -> 14400.02238 | I15: =SUM(Calculations!N27:Q27) -> 19565.37844 | J15: -5165.356051
G16: A&E visit - admission | H16: =SUM(Calculations!R28:U28) -> 8633.241395 | I16: =SUM(Calculations!N28:Q28) -> 11730.02586 | J16: -3096.78447
G17: General NHS ward | H17: =SUM(Calculations!R32:U32) -> 71631.34543 | I17: =SUM(Calculations!N32:Q32) -> 97325.8474 | J17: -25694.50197
G18: Hospital inpatient - non-hip | H18: =SUM(Calculations!R29:U29) -> 471020.4788 | I18: =SUM(Calculations!N29:Q29) -> 639977.7495 | J18: -168957.2707
G19: Hospital inpatient - hip | H19: =SUM(Calculations!R30:U31) -> 309340.8843 | I19: =SUM(Calculations!N30:Q31) -> 420302.9208 | J19: -110962.0365
G20: Total | H20: =SUM(H13:H19) -> 924810.2494 | I20: =SUM(I13:I19) -> 1256544.054 | J20: -331733.805
G22: Social care cost | H22: =SUM(Calculations!R34:U34) -> 243335.844 | I22: =SUM(Calculations!N34:Q34) -> 330621.5607 | J22: -87285.7167
G25: Number of falls-related events, total population:
G27: Event | H27: =CHOOSE(IntChoice,'2a) Interventions'!G90,'2a) Interventions'!G91,'2a) Interventions'!G92,'2a) Interventions'!G93) -> Otago | I27: Usual care | J27: Difference
G28: Total falls | H28: =SUM(Calculations!E6:F6) -> 1563.087236 | I28: =SUM(Calculations!C6:D6) -> 2119.44032 | J28: =H28-I28 -> -556.353084
G29: Serious falls | H29: =SUM(Calculations!E7:F7) -> 312.6174472 | I29: =SUM(Calculations!C7:D7) -> 423.888064 | J29: =H29-I29 -> -111.2706168
G30: Serious falls requiring a GP visit | H30: =SUM(Calculations!E8:F8) -> 159.4348981 | I30: =SUM(Calculations!C8:D8) -> 216.1829126 | J30: -56.74801457
G31: Serious falls requiring an ambulance call-out | H31: =SUM(Calculations!E9:F9) -> 190.6966428 | I31: =SUM(Calculations!C9:D9) -> 258.571719 | J31: -67.87507625
G32: Serious falls requiring an A&E visit | H32: =SUM(Calculations!E10:F10) -> 250.0939578 | I32: =SUM(Calculations!C10:D10) -> 339.1104512 | J32: -89.01649344
G33: A&E attendances requiring admission | H33: =SUM(Calculations!E11:F11) -> 87.53288522 | I33: =SUM(Calculations!C11:D11) -> 118.6886579 | J33: -31.1557727
G34: Admissions that are due to hip fractures | H34: =SUM(Calculations!E12:F12) -> 60.3976908 | I34: =SUM(Calculations!C12:D12) -> 81.89517396 | J34: -21.49748317
G35: Admission due to non-hip fracture | H35: =SUM(Calculations!E13:F13) -> 27.13519442 | I35: =SUM(Calculations!C13:D13) -> 36.79348396 | J35: -9.658289538
G36: No. of patients newly transferred to a care home | H36: =Calculations!N10 -> 3.133677291 | I36: =Calculations!J10 -> 4.249053954 | J36: -1.115376663
G39: Cost breakdown by sector (excluding intervention costs), total population:
G41: Sector | H41: =CHOOSE(IntChoice,'2a) Interventions'!G90,'2a) Interventions'!G91,'2a) Interventions'!G92,'2a) Interventions'!G93) -> Otago | I41: Usual care | J41: Difference
G42: NHS | H42: ='3a) Results summary'!H22+'3a) Results summary'!H23-SUM(Calculations!R40:U40) -> 942734.6256 | I42: ='3a) Results summary'!I22+'3a) Results summary'!I23-SUM(Calculations!N40:Q40) -> 1280897.989 | J42: =H42-I42 -> -338163.3634
G43: Local authority | H43: =SUM(Calculations!R40:U40) -> 225411.4677 | I43: =SUM(Calculations!N40:Q40) -> 306267.626 | J43: =H43-I43 -> -80856.15827

Sheet 3c) Results charts

Sheet 3d) Sensitivity analysis
G8: Select deterministic sensitivity analysis from drop down menu:
D84: 5 | F84: 1 | G84: Number of falls and treatment effectiveness
F85: 2 | G85: Events following falls
F86: 3 | G86: Utility
F87: 4 | G87: Unit cost of events
F88: 5 | G88: Destination of discharge
F89: 6

Sheet 3d) Sensitivity analysis 2

Sheet 3d) Sensitivity analysis 3

Sheet 3d) Sensitivity analysis 4

Sheet 3d) Sensitivity analysis 5

Sheet 3d) Sensitivity analysis 6
D127: 1 | F127: 1 | G127: Destination of discharge
F128: 2 | G128: Number of falls and treatment effectiveness
F129: 3 | G129: Events following falls
F130: 4 | G130: Utility
F131: 5 | G131: Unit cost of events
